Workbook

Sheet Fiscal Interna (DOP)
B7: Evolución de la Deuda Pública Interna del Sector Público No Financiero durante el período Enero - Noviembre 2020
B8: Cifras Preliminares en Millones de Pesos Dominicanos (DOP)
B9: CONCEPTOS | C9: ENE | D9: FEB | E9: MAR | F9: ABR | G9: MAY | H9: JUN | I9: JUL | J9: AGO | K9: SEP | L9: OCT | M9: NOV | N9: DIC | O9: Total
B11: DESEMBOLSOS
B13: I.- Desembolsos/Colocaciones | C13: =+C14+C25 -> 5598.847191 | D13: =+D14+D25 -> 4050.62 | E13: 8891.360796 | F13: 4448.031986 | G13: 42968.6844 | H13: 3766.074356 | I13: 47240.9241 | J13: 26000 | K13: -12690.01865 | L13: 12065.70058 | M13: 851.6915074 | N13: 0 | O13: 143191.9163
B14: Apoyo Presupuestario | C14: =+C15+C19 -> 5408 | D14: 4050 | E14: 8813.8 | F14: 0 | G14: 40000 | H14: 1500 | I14: 43759.85 | J14: 26000 | K14: -14964.4 | L14: 0 | M14: 0 | N14: 0 | O14: 114567.25
B15: Ministerio de Hacienda (Mediano/Largo Plazo) | C15: =SUM(C16:C17) -> 5408 | D15: 4050 | E15: 8813.8 | F15: 0 | G15: 40000 | H15: 1500 | I15: 43759.85 | J15: 5000 | K15: 6035.6 | L15: 0 | M15: 0 | N15: 0 | O15: 114567.25
B16: Bonos Colocados MH | C16: ='Ejec RD$'!C16/1000000 -> 5408 | D16: ='Ejec RD$'!D16/1000000 -> 4050 | E16: ='Ejec RD$'!E16/1000000 -> 8813.8 | F16: ='Ejec RD$'!F16/1000000 -> 0 | G16: ='Ejec RD$'!G16/1000000 -> 40000 | H16: ='Ejec RD$'!H16/1000000 -> 0 | I16: ='Ejec RD$'!I16/1000000 -> 43759.85 | J16: ='Ejec RD$'!J16/1000000 -> 5000 | K16: ='Ejec RD$'!K16/1000000 -> 6035.6 | L16: ='Ejec RD$'!L16/1000000 -> 0 | M16: ='Ejec RD$'!M16/1000000 -> 0 | N16: ='Ejec RD$'!N16/1000000 -> 0 | O16: =SUM(C16:N16) -> 113067.25
B17: Prestamos Banco de Reservas | C17: ='Ejec RD$'!C17/1000000 -> 0 | D17: ='Ejec RD$'!D17/1000000 -> 0 | E17: ='Ejec RD$'!E17/1000000 -> 0 | F17: ='Ejec RD$'!F17/1000000 -> 0 | G17: ='Ejec RD$'!G17/1000000 -> 0 | H17: ='Ejec RD$'!H17/1000000 -> 1500 | I17: ='Ejec RD$'!I17/1000000 -> 0 | J17: ='Ejec RD$'!J17/1000000 -> 0 | K17: ='Ejec RD$'!K17/1000000 -> 0 | L17: ='Ejec RD$'!L17/1000000 -> 0 | M17: ='Ejec RD$'!M17/1000000 -> 0 | N17: ='Ejec RD$'!N17/1000000 -> 0 | O17: =SUM(C17:N17) -> 1500
B19: Tesorería Nacional (Corto Plazo) | C19: =C20 -> 2.182698466e-13 | D19: =D20 -> 0 | E19: 0 | F19: 0 | G19: 0 | H19: 0 | I19: 0 | J19: 21000 | K19: -21000 | L19: 0 | M19: 0 | N19: 0 | O19: =O20 -> 2.03725925e-12
B20: Flujos Lineas de Crédito | C20: =C21+C22+C23 -> 2.182698466e-13 | D20: =D21+D22+D23 -> 0 | E20: 0 | F20: 0 | G20: 0 | H20: 0 | I20: 0 | J20: 21000 | K20: -21000 | L20: 0 | M20: 0 | N20: 0 | O20: 2.03725925e-12
B21: Créditos (Desembolsos) | C21: ='Ejec RD$'!C21/1000000 -> 5312.8125 | D21: ='Ejec RD$'!D21/1000000 -> 0 | E21: ='Ejec RD$'!E21/1000000 -> 0 | F21: ='Ejec RD$'!F21/1000000 -> 0 | G21: ='Ejec RD$'!G21/1000000 -> 0 | H21: ='Ejec RD$'!H21/1000000 -> 0 | I21: ='Ejec RD$'!I21/1000000 -> 3000 | J21: ='Ejec RD$'!J21/1000000 -> 21000 | K21: ='Ejec RD$'!K21/1000000 -> 7000 | L21: ='Ejec RD$'!L21/1000000 -> 0 | M21: ='Ejec RD$'!M21/1000000 -> 0 | N21: ='Ejec RD$'!N21/1000000 -> 0 | O21: =SUM(C21:N21) -> 36312.8125
B22: Débitos (Reembolsos) | C22: ='Ejec RD$'!C22/1000000 -> -5313.49 | D22: ='Ejec RD$'!D22/1000000 -> 0 | E22: ='Ejec RD$'!E22/1000000 -> 0 | F22: ='Ejec RD$'!F22/1000000 -> 0 | G22: ='Ejec RD$'!G22/1000000 -> 0 | H22: ='Ejec RD$'!H22/1000000 -> 0 | I22: ='Ejec RD$'!I22/1000000 -> -3000 | J22: ='Ejec RD$'!J22/1000000 -> 0 | K22: ='Ejec RD$'!K22/1000000 -> -28000 | L22: ='Ejec RD$'!L22/1000000 -> 0 | M22: ='Ejec RD$'!M22/1000000 -> 0 | N22: ='Ejec RD$'!N22/1000000 -> 0 | O22: =SUM(C22:N22) -> -36313.49
B23: Ajuste por Tipo de Cambio | C23: ='Ejec RD$'!C23/1000000 -> 0.6775 | D23: ='Ejec RD$'!D23/1000000 -> 0 | E23: ='Ejec RD$'!E23/1000000 -> 0 | F23: ='Ejec RD$'!F23/1000000 -> 0 | G23: ='Ejec RD$'!G23/1000000 -> 0 | H23: ='Ejec RD$'!H23/1000000 -> 0 | I23: ='Ejec RD$'!I23/1000000 -> 0 | J23: ='Ejec RD$'!J23/1000000 -> 0 | K23: ='Ejec RD$'!K23/1000000 -> 0 | L23: ='Ejec RD$'!L23/1000000 -> 0 | M23: ='Ejec RD$'!M23/1000000 -> 0 | N23: ='Ejec RD$'!N23/1000000 -> 0 | O23: =SUM(C23:N23) -> 0.6775
I24: ='Ejec RD$'!J23/1000000 -> 0 | J24: ='Ejec RD$'!K23/1000000 -> 0
B25: Desembolsos a Instituciones del Resto del SPNF | C25: =+C26 -> 190.847191 | D25: =+D26 -> 0.62 | E25: 77.56079554 | F25: 4448.031986 | G25: 2968.684399 | H25: 2266.074356 | I25: 3481.074096 | J25: 0 | K25: 2274.381345 | L25: 12065.70058 | M25: 851.6915074 | N25: 0 | O25: =+O26 -> 28624.66626
B26: Financiamiento Banca Comercial al Resto del SPNF | C26: 190.847191 | D26: 0.62 | E26: 77.56079554 | F26: 4448.031986 | G26: 2968.684399 | H26: 2266.074356 | I26: 3481.074096 | J26: 0 | K26: 2274.381345 | L26: 12065.70058 | M26: 851.6915074 | N26: 0 | O26: =SUM(C26:N26) -> 28624.66626
B28: PRINCIPAL
A29: 1000000 | C29: 2020
B30: II.- Vencimientos Regulares Principal | C30: =+C31+C33 -> 937.8253258 | D30: =+D31+D33 -> 1383.110158 | E30: =+E31+E33 -> 958.6449658 | F30: 850.2818402 | G30: 1532.368225 | H30: 1127.665881 | I30: 13207.17443 | J30: =+J31+J33 -> 1507.464293 | K30: =+K31+K33 -> 5675.880184 | L30: 8108.809707 | M30: 941.4539606 | N30: 0 | O30: =+O31+O33 -> 36230.67897
A31: -II-Int | B31: Gobierno Central | C31: 158.4037086 | D31: 159.180098 | E31: 160.313376 | F31: 161.5191052 | G31: 166.6896676 | H31: 173.4228479 | I31: 11173.88975 | J31: 174.057913 | K31: 4813.216123 | L31: 5173.968467 | M31: 173.6524254 | N31: 0 | O31: =SUM(C31:N31) -> 22488.31349
B32: De los cuales: Bonos | C32: 0 | D32: 0 | E32: 0 | F32: 0 | G32: 0 | H32: 0 | I32: 11000 | J32: 0 | K32: 4639.384508 | L32: 5000 | M32: 0 | N32: 0 | O32: =SUM(C32:N32) -> 20639.38451
B33: Resto del sector Público no financiero | C33: 779.4216172 | D33: 1223.93006 | E33: 798.3315897 | F33: 688.762735 | G33: 1365.678558 | H33: 954.2430327 | I33: 2033.284674 | J33: 1333.40638 | K33: 862.6640611 | L33: 2934.84124 | M33: 767.8015352 | N33: 0 | O33: =SUM(C33:N33) -> 13742.36548
B35: III.- Pagos del período Principal | C35: =+C36+C38 -> 937.2491966 | D35: =+D36+D38 -> 1382.675451 | E35: =+E36+E38 -> 958.1193227 | F35: 848.9604279 | G35: 1528.21168 | H35: 1121.934791 | I35: 13206.93203 | J35: 1507.677472 | K35: 1037.015058 | L35: 3109.157055 | M35: 942.1763844 | N35: 0 | O35: =+O36+O38 -> 26580.10887
A36: -III-Int | B36: Gobierno Central | C36: 157.8275793 | D36: 158.7453915 | E36: 159.787733 | F36: 160.1976928 | G36: 162.5331222 | H36: 167.6917585 | I36: 11173.64736 | J36: 174.2710921 | K36: 174.350997 | L36: 174.315815 | M36: 174.3748492 | N36: 0 | O36: =SUM(C36:N36) -> 12837.74339
B37: De los cuales: Bonos | C37: 0 | D37: 0 | E37: 0 | F37: 0 | G37: 0 | H37: 0 | I37: 11000 | J37: 0 | K37: 0 | L37: 0 | M37: 0 | N37: 0 | O37: =SUM(C37:N37) -> 11000
B38: Resto del sector Público no financiero | C38: 779.4216172 | D38: 1223.93006 | E38: 798.3315897 | F38: 688.762735 | G38: 1365.678558 | H38: 954.2430327 | I38: 2033.284674 | J38: 1333.40638 | K38: 862.6640611 | L38: 2934.84124 | M38: 767.8015352 | N38: 0 | O38: =SUM(C38:N38) -> 13742.36548
B40: IV.- Renegociaciones de Principal | C40: =+C41+C42 -> 0 | D40: =+D41+D42 -> 0 | E40: 0 | F40: 0 | G40: 0 | H40: 0 | I40: 0 | J40: 0 | K40: 4639.384508 | L40: 5000 | M40: 0 | N40: 0 | O40: 9639.384508
A41: -IV-Int | B41: Gobierno Central | C41: 0 | D41: 0 | E41: 0 | F41: 0 | G41: 0 | H41: 0 | I41: 0 | J41: 0 | K41: 4639.384508 | L41: 5000 | M41: 0 | N41: 0 | O41: =SUM(C41:N41) -> 9639.384508
B42: Resto del sector Público no financiero | C42: 0 | D42: 0 | E42: 0 | F42: 0 | G42: 0 | H42: 0 | I42: 0 | J42: 0 | K42: 0 | L42: 0 | M42: 0 | N42: 0 | O42: =SUM(C42:N42) -> 0
B44: V.- Prepago de principal | C44: =+C45+C46 -> 0 | D44: =+D45+D46 -> 0 | E44: 0 | F44: 0 | G44: 0 | H44: 0 | I44: 0 | J44: 0 | K44: 0 | L44: 0 | M44: 0 | N44: 0 | O44: 0
A45: -V-Int-PRE | B45: Gobierno Central | C45: 0 | D45: 0 | E45: 0 | F45: 0 | G45: 0 | H45: 0 | I45: 0 | J45: 0 | K45: 0 | L45: 0 | M45: 0 | N45: 0 | O45: =SUM(C45:N45) -> 0
B46: Resto del sector Público no financiero | C46: 0 | D46: 0 | E46: 0 | F46: 0 | G46: 0 | H46: 0 | I46: 0 | J46: 0 | K46: 0 | L46: 0 | M46: 0 | N46: 0 | O46: =SUM(C46:N46) -> 0
B48: VI.- Cesión de Crédito | C48: =+C49+C50 -> 0 | D48: 0 | E48: 0 | F48: 0 | G48: 0 | H48: 0 | I48: 0 | J48: 0 | K48: 0 | L48: 0 | M48: 0 | N48: 0 | O48: 0
B49: Gobierno Central | C49: 0 | D49: 0 | E49: 0 | F49: 0 | G49: 0 | H49: 0 | I49: 0 | K49: 0 | L49: 0 | M49: 0 | N49: 0 | O49: =SUM(C49:N49) -> 0
B50: Resto del sector Público no financiero | C50: 0 | D50: 0 | E50: 0 | F50: 0 | G50: 0 | H50: 0 | I50: 0 | J50: 0 | K50: 0 | L50: 0 | M50: 0 | N50: 0 | O50: =SUM(C50:N50) -> 0
B52: VII.- Descuento de principal | C52: =+C53+C54 -> 0 | D52: =+D53+D54 -> 0 | E52: 0 | F52: 0 | G52: 0 | H52: 348.9948 | I52: 0 | J52: 0 | K52: 0 | L52: 0 | M52: 0 | N52: 0 | O52: 348.9948
A53: -VII-Desc-P. | B53: Gobierno Central | C53: 0 | D53: 0 | E53: 0 | F53: 0 | G53: 0 | H53: 348.9948 | I53: 0 | J53: 0 | K53: 0 | L53: 0 | M53: 0 | N53: 0 | O53: =SUM(C53:N53) -> 348.9948
B54: Resto del sector Público no financiero | C54: 0 | D54: 0 | E54: 0 | F54: 0 | G54: 0 | H54: 0 | I54: 0 | J54: 0 | K54: 0 | L54: 0 | M54: 0 | N54: 0 | O54: =SUM(C54:N54) -> 0
B56: VIII.- Condonaciones del Período de principal | C56: =+C57+C58 -> 0 | D56: 0 | E56: 0 | F56: 0 | G56: 0 | H56: 0 | I56: 0 | J56: 0 | K56: 0 | L56: 0 | M56: 0 | N56: 0 | O56: 0
B57: Gobierno Central | C57: 0 | D57: 0 | E57: 0 | F57: 0 | G57: 0 | H57: 0 | I57: 0 | K57: 0 | L57: 0 | M57: 0 | N57: 0 | O57: =SUM(C57:N57) -> 0
B58: Resto del sector Público no financiero | C58: 0 | D58: 0 | E58: 0 | F58: 0 | G58: 0 | H58: 0 | I58: 0 | J58: 0 | K58: 0 | L58: 0 | M58: 0 | N58: 0 | O58: =SUM(C58:N58) -> 0
B60: IX.- Nuevos Atrasos principal del Período (No pagados) | C60: =+C61+C62 -> 0 | D60: =+D61+D62 -> 0 | E60: 0 | F60: 0 | G60: 0 | H60: 0 | I60: 0 | J60: 0 | K60: 0 | L60: 0 | M60: 0 | N60: 0 | O60: 0
B61: Gobierno Central | C61: 0 | D61: 0 | E61: 0 | F61: 0 | G61: 0 | H61: 0 | I61: 0 | J61: 0 | K61: 0 | L61: 0 | M61: 0 | N61: 0 | O61: =SUM(C61:N61) -> 0
B62: Resto del sector Público no financiero | C62: 0 | D62: 0 | E62: 0 | F62: 0 | G62: 0 | H62: 0 | I62: 0 | J62: 0 | K62: 0 | L62: 0 | M62: 0 | N62: 0 | O62: =SUM(C62:N62) -> 0
B64: X.-Atrasos al inicio del período de principal | C64: =+C65+C66 -> 0 | D64: =+D65+D66 -> 0 | E64: 0 | F64: 0 | G64: 0 | H64: 0 | I64: 0 | J64: 0 | K64: 0 | L64: 0 | M64: 0 | N64: 0
B65: Gobierno Central | C65: 0 | D65: =+C89 -> 0 | E65: 0 | F65: 0 | G65: 0 | H65: 0 | I65: 0 | J65: 0 | K65: 0 | L65: 0 | M65: 0 | N65: 0
B66: Resto del sector Público no financiero | C66: 0 | D66: =+C90 -> 0 | E66: 0 | F66: 0 | G66: 0 | H66: 0 | I66: 0 | J66: 0 | K66: 0 | L66: 0 | M66: 0 | N66: 0
B68: XI.- Pagos de atrasos al inicio del período de principal | C68: =+C69+C70 -> 0 | D68: =+D69+D70 -> 0 | E68: 0 | F68: 0 | G68: 0 | H68: 0 | I68: 0 | J68: 0 | K68: 0 | L68: 0 | M68: 0 | N68: 0 | O68: 0
B69: Gobierno Central | C69: 0 | D69: 0 | E69: 0 | F69: 0 | G69: 0 | H69: 0 | I69: 0 | J69: 0 | K69: 0 | L69: 0 | M69: 0 | N69: 0 | O69: =SUM(C69:N69) -> 0
B70: Resto del sector Público no financiero | C70: 0 | D70: 0 | E70: 0 | F70: 0 | G70: 0 | H70: 0 | I70: 0 | J70: 0 | K70: 0 | L70: 0 | M70: 0 | N70: 0 | O70: =SUM(C70:N70) -> 0
B72: XII.- Renegociaciones de Períodos Anteriores de principal | C72: =+C73+C74 -> 0 | D72: 0 | E72: 0 | F72: 0 | G72: 0 | H72: 0 | I72: 0 | J72: 0 | K72: 0 | L72: 0 | M72: 0 | N72: 0 | O72: 0
B73: Gobierno Central | C73: 0 | D73: 0 | E73: 0 | F73: 0 | G73: 0 | H73: 0 | I73: 0 | J73: 0 | K73: 0 | L73: 0 | M73: 0 | N73: 0 | O73: =SUM(C73:N73) -> 0
B74: Resto del sector Público no financiero | C74: 0 | D74: 0 | E74: 0 | F74: 0 | G74: 0 | H74: 0 | I74: 0 | J74: 0 | K74: 0 | L74: 0 | M74: 0 | N74: 0 | O74: =SUM(C74:N74) -> 0
B76: XIII.- Condonaciones de Períodos Anteriores de principal | C76: =+C77+C78 -> 0 | D76: =+D77+D78 -> 0 | E76: 0 | F76: 0 | G76: 0 | H76: 0 | I76: 0 | J76: 0 | K76: 0 | L76: 0 | M76: 0 | N76: 0 | O76: =+O77+O78 -> 0
B77: Gobierno Central | C77: 0 | D77: 0 | E77: 0 | F77: 0 | G77: 0 | H77: 0 | I77: 0 | J77: 0 | K77: 0 | L77: 0 | M77: 0 | N77: 0 | O77: =SUM(C77:N77) -> 0
B78: Resto del sector Público no financiero | C78: 0 | D78: 0 | E78: 0 | F78: 0 | G78: 0 | H78: 0 | I78: 0 | J78: 0 | K78: 0 | L78: 0 | M78: 0 | N78: 0 | O78: =SUM(C78:N78) -> 0
B80: XIV.- Atrasos pendientes períodos anteriores de principal | C80: =SUM(C81:C82) -> 0 | D80: =SUM(D81:D82) -> 0 | E80: 0 | F80: 0 | G80: 0 | H80: 0 | I80: 0 | J80: 0 | K80: 0 | L80: 0 | M80: 0 | N80: 0
B81: Gobierno Central | C81: =+C65-C69-C73-C77 -> 0 | D81: =+D65-D69-D73-D77 -> 0 | E81: 0 | F81: 0 | G81: 0 | H81: 0 | I81: 0 | J81: 0 | K81: 0 | L81: 0 | M81: 0 | N81: 0
B82: Resto del sector Público no financiero | C82: =+C66-C70-C74-C78 -> 0 | D82: 0 | E82: 0 | F82: 0 | G82: 0 | H82: 0 | I82: 0 | J82: 0 | K82: 0 | L82: 0 | M82: 0 | N82: 0
B84: XV.-Ajustes por tipo de cambio de principal | C84: =SUM(C85:C86) -> 0.5761292548 | D84: =SUM(D85:D86) -> 0.4347064982 | E84: 0.5256430398 | F84: 1.321412344 | G84: 4.15654546 | H84: 5.731089379 | I84: 0.2423980685 | J84: -0.2131791123 | K84: -0.5193818395 | L84: -0.3473477838 | M84: -0.7224237651 | N84: 0 | O84: 11.18559154
B85: Gobierno Central | C85: =(+C31-C36-C57-C61-C45) -> 0.5761292548 | D85: 0.4347064982 | E85: 0.5256430398 | F85: =(+F31-F36-F57-F61-F45) -> 1.321412344 | G85: =(+G31-G36-G57-G61) -> 4.15654546 | H85: =(+H31-H36-H57-H61) -> 5.731089379 | I85: 0.2423980685 | J85: -0.2131791123 | K85: =(+K31-K36-K41-K57-K61) -> -0.5193818395 | L85: =(+L31-L36-L41-L57-L61) -> -0.3473477838 | M85: =(+M31-M36-M41-M57-M61) -> -0.7224237651 | N85: 0 | O85: =SUM(C85:N85) -> 11.18559154
B86: Resto del sector Público no financiero | C86: =+C33-C38-C58-C62 -> 0 | D86: =+D33-D38-D58-D62 -> 0 | E86: 0 | F86: =+F33-F38-F46-F58-F62 -> 0 | G86: 0 | H86: =+H33-H38-H46-H58-H62 -> 0 | I86: 0 | J86: 0 | K86: 0 | L86: 0 | M86: 0 | N86: =+N33-N38-N46-N58-N62 -> 0 | O86: =SUM(C86:N86) -> 0
B88: XVI.- Atrasos al final del período de principal | C88: =SUM(C89:C90) -> 0 | D88: 0 | E88: 0 | F88: 0 | G88: 0 | H88: 0 | I88: 0 | J88: 0 | K88: 0 | L88: 0 | M88: 0 | N88: 0
B89: Gobierno Central | C89: =+C81+C61 -> 0 | D89: =+D81+D61 -> 0 | E89: 0 | F89: 0 | G89: 0 | H89: 0 | I89: 0 | J89: 0 | K89: 0 | L89: 0 | M89: 0 | N89: 0
B90: Resto del sector Público no financiero | C90: =+C82+C62 -> 0 | D90: 0 | E90: 0 | F90: 0 | G90: 0 | H90: 0 | I90: 0 | J90: 0 | K90: 0 | L90: 0 | M90: 0 | N90: 0
B92: INTERESES
B94: XVII.- Vencimientos Regulares Intereses | C94: =+C95+C101 -> 7467.317293 | D94: =+D95+D101 -> 6579.692564 | E94: =+E95+E101 -> 6694.51495 | F94: 2763.156835 | G94: 4108.651547 | H94: 6666.992437 | I94: 8408.27461 | J94: 8596.381092 | K94: 6970.306629 | L94: 2734.101361 | M94: 4153.305721 | N94: 0 | O94: =+O95+O101 -> 65142.69504
B95: Gobierno Central | C95: =+C96+C98+C99 -> 7240.370521 | D95: =+D96+D98+D99 -> 6337.968197 | E95: =+E96+E98+E99 -> 6488.098519 | F95: 2551.644163 | G95: 3861.323897 | H95: 6368.982029 | I95: 8111.847995 | J95: 8270.867686 | K95: 6653.015269 | L95: 2417.600632 | M95: 3771.373529 | N95: 0 | O95: 62073.09244
A96: -XV-int | B96: Intereses | C96: 7236.840604 | D96: 6334.890736 | E96: 6485.859819 | F96: 2550.735411 | G96: 3859.619465 | H96: 6367.293499 | I96: 8102.325775 | J96: 8266.78773 | K96: 6650.745064 | L96: 2416.764011 | M96: 3769.722795 | N96: 0 | O96: =SUM(C96:N96) -> 62041.58491
B97: De los cuales: Bonos | C97: 7059.834246 | D97: 6154.923003 | E97: 6353.206621 | F97: 2506.593429 | G97: 3819.109414 | H97: 6323.101502 | I97: 8044.440664 | J97: 8159.912317 | K97: 6392.493194 | L97: 2367.593741 | M97: 3716.220727 | N97: 0 | O97: =(SUM(C97:N97)) -> 60897.42886
B98: Intereses por mora | C98: 0 | D98: 0 | E98: 0 | F98: 0 | G98: 0 | H98: 0 | I98: 0 | J98: 0 | K98: 0 | L98: 0 | M98: 0 | N98: 0 | O98: =SUM(C98:N98) -> 0
B99: Comisiones | C99: 3.529916723 | D99: 3.07746148 | E99: 2.238699289 | F99: 0.9087511877 | G99: 1.704431616 | H99: 1.688530208 | I99: 9.522219907 | J99: 4.07995612 | K99: 2.270205311 | L99: 0.83662163 | M99: 1.65073332 | N99: 0 | O99: =SUM(C99:N99) -> 31.50752679
B100: De los cuales: Bonos | C100: 3.529916723 | D100: 3.07746148 | E100: 2.238699289 | F100: 0.9087511877 | G100: 1.704431616 | H100: 1.688530208 | I100: 9.522219907 | J100: 4.07995612 | K100: 2.270205311 | L100: 0.83662163 | M100: 1.65073332 | N100: 0 | O100: =SUM(C100:N100) -> 31.50752679
B101: Resto del sector Público no financiero | C101: =+C102+C103+C104 -> 226.9467723 | D101: =+D102+D103+D104 -> 241.724367 | E101: 206.4164317 | F101: 211.512672 | G101: 247.3276507 | H101: 298.0104081 | I101: 296.4266151 | J101: 325.5134059 | K101: 317.29136 | L101: 316.500729 | M101: 381.932192 | N101: 0 | O101: =+O102+O103+O104 -> 3069.602604
B102: Intereses | C102: 226.9467723 | D102: 241.724367 | E102: 206.4164317 | F102: 211.512672 | G102: 247.3276507 | H102: 298.0104081 | I102: 296.4266151 | J102: 325.5134059 | K102: 317.29136 | L102: 316.500729 | M102: 381.932192 | N102: 0 | O102: =SUM(C102:N102) -> 3069.602604
B103: Intereses por mora | C103: 0 | D103: 0 | E103: 0 | F103: 0 | G103: 0 | H103: 0 | I103: 0 | J103: 0 | K103: 0 | L103: 0 | M103: 0 | N103: 0 | O103: =SUM(C103:N103) -> 0
B104: Comisiones | C104: 0 | D104: 0 | E104: 0 | F104: 0 | G104: 0 | H104: 0 | I104: 0 | J104: 0 | K104: 0 | L104: 0 | M104: 0 | N104: 0 | O104: =SUM(C104:N104) -> 0
B106: XVIII.-Pagos de intereses del período | C106: =+C107+C113 -> 7462.587321 | D106: =+D107+D113 -> 6579.201089 | E106: 4859.201083 | F106: 2072.641548 | G106: 3693.559905 | H106: 3494.990321 | I106: 8406.218278 | J106: 8596.431614 | K106: 5118.840613 | L106: 2039.824586 | M106: 3738.717778 | N106: 0 | O106: =+O107+O113 -> 56062.21414
B107: Gobierno Central | C107: =+C108+C110+C111 -> 7235.640548 | D107: =+D108+D110+D111 -> 6337.476722 | E107: =+E108+E110+E111 -> 4652.784651 | F107: 1861.128876 | G107: 3446.232255 | H107: 3196.979913 | I107: 8109.791663 | J107: 8270.918208 | K107: 4801.549253 | L107: 1723.323857 | M107: 3356.785586 | N107: 0 | O107: 52992.61153
A108: -XVI-int | B108: Intereses | C108: 7232.112706 | D108: 6334.39926 | E108: 4650.546318 | F108: 1860.220656 | G108: 3444.52974 | H108: 3195.3989 | I108: 8100.27044 | J108: 8266.838252 | K108: 4799.278806 | L108: 1722.487235 | M108: 3355.134852 | N108: 0 | O108: =SUM(C108:N108) -> 52961.21717
B109: De los cuales: Bonos | C109: 7055.684416 | D109: 6154.923003 | E109: 4518.117013 | F109: 1816.439806 | G109: 3405.02984 | H109: 3152.667312 | I109: 8042.445894 | J109: 8159.912317 | K109: 4540.894283 | L109: 1673.24325 | M109: 3301.466628 | N109: 0 | O109: =SUM(C109:N109) -> 51820.82376
B110: Intereses por mora | C110: 0 | D110: 0 | E110: 0 | F110: 0 | G110: 0 | H110: 0 | I110: 0 | J110: 0 | K110: 0 | L110: 0 | M110: 0 | N110: 0 | O110: =SUM(C110:N110) -> 0
B111: Comisiones | C111: 3.52784233 | D111: 3.07746148 | E111: 2.23833308 | F111: 0.90821984 | G111: 1.70251478 | H111: 1.581013281 | I111: 9.52122311 | J111: 4.07995612 | K111: 2.27044731 | L111: 0.83662163 | M111: 1.65073332 | N111: 0 | O111: =SUM(C111:N111) -> 31.39436628
A112: -C | B112: De los cuales: Bonos | C112: 3.52784233 | D112: 3.07746148 | E112: 2.23833308 | F112: 0.90821984 | G112: 1.70251478 | H112: 1.581013281 | I112: 9.52122311 | J112: 4.07995612 | K112: 2.27044731 | L112: 0.83662163 | M112: 1.65073332 | N112: 0 | O112: =SUM(C112:N112) -> 31.39436628
B113: Resto del sector Público no financiero | C113: =+C114+C115+C116 -> 226.9467723 | D113: =+D114+D115+D116 -> 241.724367 | E113: 206.4164317 | F113: 211.512672 | G113: 247.3276507 | H113: 298.0104081 | I113: 296.4266151 | J113: 325.5134059 | K113: 317.29136 | L113: 316.500729 | M113: 381.932192 | N113: 0 | O113: 3069.602604
B114: Intereses | C114: 226.9467723 | D114: 241.724367 | E114: 206.4164317 | F114: 211.512672 | G114: 247.3276507 | H114: 298.0104081 | I114: 296.4266151 | J114: 325.5134059 | K114: 317.29136 | L114: 316.500729 | M114: 381.932192 | N114: 0 | O114: =SUM(C114:N114) -> 3069.602604
B115: Intereses por mora | C115: 0 | D115: 0 | E115: 0 | F115: 0 | G115: 0 | H115: 0 | I115: 0 | J115: 0 | K115: 0 | L115: 0 | M115: 0 | N115: 0 | O115: =SUM(C115:N115) -> 0
B116: Comisiones | C116: 0 | D116: 0 | E116: 0 | F116: 0 | G116: 0 | H116: 0 | I116: 0 | J116: 0 | K116: 0 | L116: 0 | M116: 0 | N116: 0 | O116: =SUM(C116:N116) -> 0
B118: XIX.-Prepago de intereses | C118: =+C119+C123 -> 0 | D118: =+D119+D123 -> 0 | E118: 0 | F118: 0 | G118: 0 | H118: 0 | I118: 0 | J118: 0 | K118: 0 | L118: 0 | M118: 0 | N118: 0 | O118: 0
B119: Gobierno Central | C119: =+C120+C121+C122 -> 0 | D119: 0 | E119: 0 | F119: 0 | G119: 0 | H119: 0 | I119: 0 | J119: 0 | K119: 0 | L119: 0 | M119: 0 | N119: 0 | O119: 0
A120: -XVII-PRE | B120: Intereses | C120: 0 | D120: 0 | E120: 0 | F120: 0 | G120: 0 | H120: 0 | I120: 0 | J120: 0 | K120: 0 | L120: 0 | M120: 0 | N120: 0 | O120: =SUM(C120:N120) -> 0
B121: Intereses por mora | C121: 0 | D121: 0 | E121: 0 | F121: 0 | G121: 0 | H121: 0 | I121: 0 | J121: 0 | K121: 0 | L121: 0 | M121: 0 | N121: 0 | O121: =SUM(C121:N121) -> 0
B122: Comisiones | C122: 0 | D122: 0 | E122: 0 | F122: 0 | G122: 0 | H122: 0 | I122: 0 | J122: 0 | K122: 0 | L122: 0 | M122: 0 | N122: 0 | O122: =SUM(C122:N122) -> 0
B123: Resto del sector Público no financiero | C123: =+C124+C125+C126 -> 0 | D123: 0 | E123: 0 | F123: 0 | G123: 0 | H123: 0 | I123: 0 | J123: 0 | K123: 0 | L123: 0 | M123: 0 | N123: 0 | O123: 0
B124: Intereses | C124: 0 | D124: 0 | E124: 0 | F124: 0 | G124: 0 | H124: 0 | I124: 0 | J124: 0 | K124: 0 | L124: 0 | M124: 0 | N124: 0 | O124: =SUM(C124:N124) -> 0
B125: Intereses por mora | C125: 0 | D125: 0 | E125: 0 | F125: 0 | G125: 0 | H125: 0 | I125: 0 | J125: 0 | K125: 0 | L125: 0 | M125: 0 | N125: 0 | O125: =SUM(C125:N125) -> 0
B126: Comisiones | C126: 0 | D126: 0 | E126: 0 | F126: 0 | G126: 0 | H126: 0 | I126: 0 | J126: 0 | K126: 0 | L126: 0 | M126: 0 | N126: 0 | O126: =SUM(C126:N126) -> 0
B128: XX.- Condonaciones de intereses del Períodos | C128: =+C129+C134 -> 0 | D128: 0 | E128: 0 | F128: 0 | G128: 0 | H128: 0 | I128: 0 | J128: 0 | K128: 0 | L128: 0 | M128: 0 | N128: 0 | O128: 0
B129: Gobierno Central | C129: =+C130+C132+C133 -> 0 | D129: 0 | E129: 0 | F129: 0 | G129: 0 | H129: 0 | I129: 0 | J129: 0 | K129: 0 | L129: 0 | M129: 0 | N129: 0 | O129: =+O130+O132+O133 -> 0
B130: Intereses | C130: 0 | D130: 0 | E130: 0 | F130: 0 | G130: 0 | H130: 0 | I130: 0 | J130: 0 | K130: 0 | L130: 0 | M130: 0 | N130: 0 | O130: =SUM(C130:N130) -> 0
B131: De los cuales: Bonos | C131: 0 | D131: 0 | E131: 0 | F131: 0 | G131: 0 | H131: 0 | I131: 0 | J131: 0 | K131: 0 | L131: 0 | M131: 0 | N131: 0 | O131: =SUM(C131:N131) -> 0
B132: Intereses por mora | C132: 0 | D132: 0 | E132: 0 | F132: 0 | G132: 0 | H132: 0 | I132: 0 | J132: 0 | K132: 0 | L132: 0 | M132: 0 | N132: 0 | O132: 0
B133: Comisiones | C133: 0 | D133: 0 | E133: 0 | F133: 0 | G133: 0 | H133: 0 | I133: 0 | K133: 0 | L133: 0 | M133: 0 | N133: 0 | O133: 0
B134: Resto del sector Público no financiero | C134: =+C135+C136+C137 -> 0 | D134: 0 | E134: 0 | F134: 0 | G134: 0 | H134: 0 | I134: 0 | J134: 0 | K134: 0 | L134: 0 | M134: 0 | N134: 0 | O134: =+O135+O136+O137 -> 0
B135: Intereses | C135: 0 | D135: 0 | E135: 0 | F135: 0 | G135: 0 | H135: 0 | I135: 0 | J135: 0 | K135: 0 | L135: 0 | M135: 0 | N135: 0 | O135: =SUM(C135:N135) -> 0
B136: Intereses por mora | C136: 0 | D136: 0 | E136: 0 | F136: 0 | G136: 0 | H136: 0 | I136: 0 | J136: 0 | K136: 0 | L136: 0 | M136: 0 | N136: 0 | O136: =SUM(C136:N136) -> 0
B137: Comisiones | C137: 0 | D137: 0 | E137: 0 | F137: 0 | G137: 0 | H137: 0 | I137: 0 | J137: 0 | K137: 0 | L137: 0 | M137: 0 | N137: 0 | O137: =SUM(C137:N137) -> 0
A139: ATRASO PAGADO | B139: XXI.-Nuevos Atrasos intereses del Período (No Pagados) | C139: =+C140+C146 -> 0 | D139: =+D140+D146 -> 0 | E139: 1834.220835 | F139: 689.0909282 | G139: 410.2459016 | H139: 3091.073075 | I139: 0 | J139: 0 | K139: 1852.082907 | L139: 694.350491 | M139: 414.7540984 | N139: 0 | O139: 8985.818236
A140: -XIX | B140: Gobierno Central | C140: =+C141+C143+C144 -> 0 | D140: 0 | E140: 1834.220835 | F140: 689.0909282 | G140: 410.2459016 | H140: 3091.073075 | I140: 0 | J140: 0 | K140: 1852.082907 | L140: 694.350491 | M140: 414.7540984 | N140: 0 | O140: 8985.818236
B141: Intereses | C141: 0 | D141: 0 | E141: 1834.220835 | F141: 689.0909282 | G141: 410.2459016 | H141: 3091.000585 | I141: 0 | J141: 0 | K141: 1852.082907 | L141: 694.350491 | M141: 414.7540984 | N141: 0 | O141: =SUM(C141:N141) -> 8985.745746
B142: De los cuales: Bonos | C142: 0 | D142: 0 | E142: 1834.220835 | F142: 689.0909282 | G142: 410.2459016 | H142: 3091.000585 | I142: 0 | J142: 0 | K142: 1852.082907 | L142: 694.350491 | M142: 414.7540984 | N142: 0 | O142: =SUM(C142:N142) -> 8985.745746
B143: Intereses por mora | C143: 0 | D143: 0 | E143: 0 | F143: 0 | G143: 0 | H143: 0 | I143: 0 | J143: 0 | K143: 0 | L143: 0 | M143: 0 | N143: 0 | O143: 0
B144: Comisiones | C144: 0 | D144: 0 | E144: 0 | F144: 0 | G144: 0 | H144: 0.07249016 | I144: 0 | J144: 0 | K144: 0 | L144: 0 | M144: 0 | N144: 0 | O144: 0.07249016
B145: De los cuales: Bonos | C145: 0 | D145: 0 | E145: 0 | F145: 0 | G145: 0 | H145: 7.249016e-08 | I145: 0 | J145: 0 | K145: 0 | L145: 0 | M145: 0 | N145: 0 | O145: 7.249016e-08
B146: Resto del sector Público no financiero | C146: =+C147+C148+C149 -> 0 | D146: 0 | E146: 0 | F146: 0 | G146: 0 | H146: 0 | I146: 0 | J146: 0 | K146: 0 | L146: 0 | M146: 0 | N146: 0 | O146: 0
B147: Intereses | C147: 0 | D147: 0 | E147: 0 | F147: 0 | G147: 0 | H147: 0 | I147: 0 | J147: 0 | K147: 0 | L147: 0 | M147: 0 | N147: 0 | O147: =SUM(C147:N147) -> 0
B148: Intereses por mora | C148: 0 | D148: 0 | E148: 0 | F148: 0 | G148: 0 | H148: 0 | I148: 0 | J148: 0 | K148: 0 | L148: 0 | M148: 0 | N148: 0 | O148: =SUM(C148:N148) -> 0
B149: Comisiones | C149: 0 | D149: 0 | E149: 0 | F149: 0 | G149: 0 | H149: 0 | I149: 0 | J149: 0 | K149: 0 | L149: 0 | M149: 0 | N149: 0 | O149: 0
B151: XXII.-Atrasos de intereses al inicio del período | C151: =+C152+C156 -> 16113.93943 | D151: 16113.93943 | E151: 16113.93943 | F151: 17948.16027 | G151: 18637.2512 | H151: 18547.4971 | I151: 21154.34934 | J151: 19421.50013 | K151: 19421.50013 | L151: 17966.02234 | M151: 18167.37965 | N151: 0
B152: Gobierno Central | C152: =+C153+C154+C155 -> 16113.93943 | D152: =+D153+D154+D155 -> 16113.93943 | E152: 16113.93943 | F152: 17948.16027 | G152: 18637.2512 | H152: 18547.4971 | I152: 21154.34934 | J152: 19421.50013 | K152: 19421.50013 | L152: 17966.02234 | M152: 18167.37965 | N152: =+N153+N154+N155 -> 0
B153: Intereses | C153: 16113.93943 | D153: =C215 -> 16113.93943 | E153: =D215 -> 16113.93943 | F153: 17948.16027 | G153: =F215 -> 18637.2512 | H153: 18547.4971 | I153: 21154.27685 | J153: 19421.50013 | K153: 19421.50013 | L153: 17966.02234 | M153: 18167.37965 | N153: 0
B154: Intereses por mora | C154: 0 | D154: =C216 -> 0 | E154: =D216 -> 0 | F154: =E216 -> 0 | G154: =F216 -> 0 | H154: =G216 -> 0 | I154: =H216 -> 0 | J154: =I216 -> 0 | K154: =J216 -> 0 | L154: =K216 -> 0 | M154: =L216 -> 0 | N154: =M216 -> 0
B155: Comisiones | C155: 0 | D155: 0 | E155: 0 | F155: 0 | G155: 0 | H155: 0 | I155: 0.07249016 | J155: 0 | K155: 0 | L155: 0 | M155: 0 | N155: 0
B156: Resto del sector Público no financiero | C156: =+C157+C158+C159 -> 0 | D156: 0 | E156: 0 | F156: 0 | G156: 0 | H156: 0 | I156: =+I157+I158+I159 -> 0 | J156: 0 | K156: 0 | L156: 0 | M156: 0 | N156: 0
B157: Intereses | C157: 0 | D157: =+C219 -> 0 | E157: 0 | F157: 0 | G157: 0 | H157: 0 | I157: 0 | J157: 0 | K157: 0 | L157: 0 | M157: 0 | N157: 0
B158: Intereses por mora | C158: 0 | D158: =+C220 -> 0 | E158: 0 | F158: 0 | G158: 0 | H158: 0 | I158: 0 | J158: 0 | K158: 0 | L158: 0 | M158: 0 | N158: 0
B159: Comisiones | C159: 0 | D159: =+C221 -> 0 | E159: 0 | F159: 0 | G159: 0 | H159: 0 | I159: 0 | J159: 0 | K159: 0 | L159: 0 | M159: 0 | N159: 0
B161: XXIII.-Pagos de atrasos de intereses al inicio del período | C161: =+C162+C168 -> 0 | D161: =+D162+D168 -> 0 | E161: 0 | F161: 0 | G161: 500 | H161: 484.2208348 | I161: 1732.84921 | J161: 0 | K161: 3307.560695 | L161: 492.9931837 | M161: 1359.089723 | N161: 0 | O161: 7876.713647
B162: Gobierno Central | C162: =+C163+C165+C166 -> 0 | D162: =+D163+D165+D166 -> 0 | E162: 0 | F162: 0 | G162: 500 | H162: 484.2208348 | I162: 1732.84921 | J162: 0 | K162: 3307.560695 | L162: 492.9931837 | M162: 1359.089723 | N162: 0 | O162: 7876.713647
A163: -XXI-Int-Ant | B163: Intereses | C163: 0 | D163: 0 | E163: 0 | F163: 0 | G163: 500 | H163: 484.2208348 | I163: 1732.77672 | J163: 0 | K163: 3307.560695 | L163: 492.9931837 | M163: 1359.089723 | N163: 0 | O163: =SUM(C163:N163) -> 7876.641156
B164: De los cuales: Bonos | C164: 0 | D164: 0 | E164: 0 | F164: 0 | G164: 500 | H164: 484.2208348 | I164: 1732.77672 | J164: 0 | K164: 3307.560695 | L164: 492.9931837 | M164: 1359.089723 | N164: 0 | O164: =SUM(C164:N164) -> 7876.641156
B165: Intereses por mora | C165: 0 | D165: 0 | E165: 0 | F165: 0 | G165: 0 | H165: 0 | J165: 0 | K165: 0 | L165: 0 | M165: 0 | N165: 0 | O165: =SUM(C165:N165) -> 0
B166: Comisiones | C166: 0 | D166: 0 | E166: 0 | F166: 0 | G166: 0 | H166: 0 | I166: 0.07249016 | J166: 0 | K166: 0 | L166: 0 | M166: 0 | N166: 0 | O166: =SUM(C166:N166) -> 0.07249016
B167: De los cuales: Bonos | C167: 0 | D167: 0 | E167: 0 | F167: 0 | G167: 0 | H167: 0 | I167: 0.07249016 | J167: 0 | K167: 0 | L167: 0 | M167: 0 | N167: 0 | O167: =SUM(C167:N167) -> 0.07249016
B168: Resto del sector Público no financiero | C168: =+C169+C170+C171 -> 0 | D168: 0 | E168: 0 | F168: 0 | G168: 0 | H168: 0 | I168: 0 | J168: 0 | K168: 0 | L168: 0 | M168: 0 | N168: 0 | O168: =+O169+O170+O171 -> 0
B169: Intereses | C169: 0 | D169: 0 | E169: 0 | F169: 0 | G169: 0 | H169: 0 | I169: 0 | J169: 0 | K169: 0 | L169: 0 | M169: 0 | N169: 0 | O169: =SUM(C169:N169) -> 0
B170: Intereses por mora | C170: 0 | D170: 0 | E170: 0 | F170: 0 | G170: 0 | H170: 0 | I170: 0 | J170: 0 | K170: 0 | L170: 0 | M170: 0 | N170: 0 | O170: =SUM(C170:N170) -> 0
B171: Comisiones | C171: 0 | D171: 0 | E171: 0 | F171: 0 | G171: 0 | H171: 0 | I171: 0 | J171: 0 | K171: 0 | L171: 0 | M171: 0 | N171: 0 | O171: =SUM(C171:N171) -> 0
B173: XXIV.- Renegociaciones intereses de Períodos anteriores | C173: =+C174+C178 -> 0 | D173: 0 | E173: 0 | F173: 0 | G173: 0 | H173: 0 | I173: 0 | J173: 0 | K173: 0 | L173: 0 | M173: 0 | N173: 0 | O173: 0
B174: Gobierno Central | C174: =+C175+C176+C177 -> 0 | D174: 0 | E174: 0 | F174: 0 | G174: 0 | H174: 0 | I174: 0 | J174: 0 | K174: 0 | L174: 0 | M174: 0 | N174: 0 | O174: 0
B175: Intereses | C175: 0 | D175: 0 | E175: 0 | F175: 0 | G175: 0 | H175: 0 | I175: 0 | J175: 0 | K175: 0 | L175: 0 | M175: 0 | N175: 0 | O175: =SUM(C175:N175) -> 0
B176: Intereses por mora | C176: 0 | D176: 0 | E176: 0 | F176: 0 | G176: 0 | H176: 0 | I176: 0 | J176: 0 | K176: 0 | L176: 0 | M176: 0 | N176: 0 | O176: =SUM(C176:N176) -> 0
B177: Comisiones | C177: 0 | D177: 0 | E177: 0 | F177: 0 | G177: 0 | H177: 0 | I177: 0 | J177: 0 | K177: 0 | L177: 0 | M177: 0 | N177: 0 | O177: 0
B178: Resto del sector Público no financiero | C178: =+C179+C180+C181 -> 0 | D178: 0 | E178: 0 | F178: 0 | G178: 0 | H178: 0 | I178: 0 | J178: 0 | K178: 0 | L178: 0 | M178: 0 | N178: 0 | O178: =+O179+O180+O181 -> 0
B179: Intereses | C179: 0 | D179: 0 | E179: 0 | F179: 0 | G179: 0 | H179: 0 | I179: 0 | J179: 0 | K179: 0 | L179: 0 | M179: 0 | N179: 0 | O179: =SUM(C179:N179) -> 0
B180: Intereses por mora | C180: 0 | D180: 0 | E180: 0 | F180: 0 | G180: 0 | H180: 0 | I180: 0 | J180: 0 | K180: 0 | L180: 0 | M180: 0 | N180: 0 | O180: =SUM(C180:N180) -> 0
B181: Comisiones | C181: 0 | D181: 0 | E181: 0 | F181: 0 | G181: 0 | H181: 0 | I181: 0 | J181: 0 | K181: 0 | L181: 0 | M181: 0 | N181: 0 | O181: 0
B183: XXV.-Condonaciones intereses de Períodos anteriores | C183: =+C184+C188 -> 0 | D183: =+D184+D188 -> 0 | E183: 0 | F183: 0 | G183: 0 | H183: 0 | I183: 0 | J183: 0 | K183: 0 | L183: 0 | M183: 0 | N183: 0 | O183: 0
B184: Gobierno Central | C184: =+C185+C186+C187 -> 0 | D184: =+D185+D186+D187 -> 0 | E184: 0 | F184: 0 | G184: 0 | H184: 0 | I184: 0 | J184: 0 | K184: 0 | L184: 0 | M184: 0 | N184: 0 | O184: 0
B185: Intereses | C185: 0 | D185: 0 | E185: 0 | F185: 0 | G185: 0 | H185: 0 | I185: 0 | J185: 0 | K185: 0 | L185: 0 | M185: 0 | N185: 0 | O185: =SUM(C185:N185) -> 0
B186: Intereses por mora | C186: 0 | D186: 0 | E186: 0 | F186: 0 | G186: 0 | H186: 0 | I186: 0 | J186: 0 | K186: 0 | L186: 0 | M186: 0 | N186: 0 | O186: =SUM(C186:N186) -> 0
B187: Comisiones | C187: 0 | D187: 0 | E187: 0 | F187: 0 | G187: 0 | H187: 0 | I187: 0 | J187: 0 | K187: 0 | L187: 0 | M187: 0 | N187: 0 | O187: =SUM(C187:N187) -> 0
B188: Resto del sector Público no financiero | C188: =+C189+C190+C191 -> 0 | D188: 0 | E188: 0 | F188: 0 | G188: 0 | H188: 0 | I188: 0 | J188: 0 | K188: 0 | L188: 0 | M188: 0 | N188: 0 | O188: =+O189+O190+O191 -> 0
B189: Intereses | C189: 0 | D189: 0 | E189: 0 | F189: 0 | G189: 0 | H189: 0 | I189: 0 | J189: 0 | K189: 0 | L189: 0 | M189: 0 | N189: 0 | O189: =SUM(C189:N189) -> 0
B190: Intereses por mora | C190: 0 | D190: 0 | E190: 0 | F190: 0 | G190: 0 | H190: 0 | I190: 0 | J190: 0 | K190: 0 | L190: 0 | M190: 0 | N190: 0 | O190: =SUM(C190:N190) -> 0
B191: Comisiones | C191: 0 | D191: 0 | E191: 0 | F191: 0 | G191: 0 | H191: 0 | I191: 0 | J191: 0 | K191: 0 | L191: 0 | M191: 0 | N191: 0 | O191: =SUM(C191:N191) -> 0
B193: XXVI.- Atrasos intereses pendientes de períodos anteriores | C193: =+C194+C198 -> 16113.93943 | D193: =+D194+D198 -> 16113.93943 | E193: 16113.93943 | F193: 17948.16027 | G193: 18137.2512 | H193: 18063.27626 | I193: 19421.50013 | J193: 19421.50013 | K193: 16113.93943 | L193: 17473.02916 | M193: 16808.28993 | N193: 0
B194: Gobierno Central | C194: =SUM(C195:C197) -> 16113.93943 | D194: 16113.93943 | E194: 16113.93943 | F194: 17948.16027 | G194: 18137.2512 | H194: 18063.27626 | I194: 19421.50013 | J194: 19421.50013 | K194: 16113.93943 | L194: 17473.02916 | M194: 16808.28993 | N194: 0
B195: Intereses | C195: =+C153-C163-C175-C185 -> 16113.93943 | D195: =+D153-D163-D175-D185 -> 16113.93943 | E195: =+E153-E163-E175-E185 -> 16113.93943 | F195: =+F153-F163-F175-F185 -> 17948.16027 | G195: 18137.2512 | H195: 18063.27626 | I195: 19421.50013 | J195: 19421.50013 | K195: 16113.93943 | L195: 17473.02916 | M195: 16808.28993 | N195: 0
B196: Intereses por mora | C196: =+C154-C165-C176-C186 -> 0 | D196: 0 | E196: 0 | F196: 0 | G196: 0 | H196: 0 | I196: 0 | J196: 0 | K196: 0 | L196: 0 | M196: 0 | N196: 0
B197: Comisiones | C197: =+C155-C166-C177-C187 -> 0 | D197: 0 | E197: 0 | F197: 0 | G197: 0 | H197: 0 | I197: 0 | J197: 0 | K197: 0 | L197: 0 | M197: 0 | N197: 0
B198: Resto del sector Público no financiero | C198: =SUM(C199:C201) -> 0 | D198: 0 | E198: 0 | F198: 0 | G198: 0 | H198: 0 | I198: 0 | J198: 0 | K198: 0 | L198: 0 | M198: 0 | N198: 0
B199: Intereses | C199: =+C157-C169-C179-C189 -> 0 | D199: 0 | E199: 0 | F199: 0 | G199: 0 | H199: 0 | I199: 0 | J199: 0 | K199: 0 | L199: 0 | M199: 0 | N199: 0
B200: Intereses por mora | C200: =+C158-C170-C180-C190 -> 0 | D200: 0 | E200: 0 | F200: 0 | G200: 0 | H200: 0 | I200: 0 | J200: 0 | K200: 0 | L200: 0 | M200: 0 | N200: 0
B201: Comisiones | C201: =+C159-C171-C181-C191 -> 0 | D201: 0 | E201: 0 | F201: 0 | G201: 0 | H201: 0 | I201: 0 | J201: 0 | K201: 0 | L201: 0 | M201: 0 | N201: 0
B203: XXVII.-Ajustes por tipo de cambio de intereses | C203: =+C204+C208 -> 4.729972437 | D203: =+D204+D208 -> 0.4914756482 | E203: 1.093032826 | F203: 1.424358145 | G203: 4.845740527 | H203: 80.92904057 | I203: 2.056331562 | J203: -0.05052184683 | K203: -0.616890837 | L203: -0.07371551237 | M203: -0.1661554291 | N203: 0 | O203: 94.66266809
B204: Gobierno Central | C204: =SUM(C205:C207) -> 4.729972437 | D204: 0.4914756482 | E204: 1.093032826 | F204: 1.424358145 | G204: 4.845740527 | H204: 80.92904057 | I204: 2.056331562 | J204: -0.05052184683 | K204: -0.616890837 | L204: -0.07371551237 | M204: -0.1661554291 | N204: 0 | O204: 94.66266809
B205: Intereses | C205: =C96-C108-C120-C141-C130 -> 4.727898045 | D205: =D96-D108-D120-D141-D130 -> 0.4914756482 | E205: =E96-E108-E120-E141-E130 -> 1.092666616 | F205: =F96-F108-F120-F141-F130 -> 1.423826798 | G205: =G96-G108-G120-G141-G130 -> 4.843823691 | H205: 80.8940138 | I205: 2.055334766 | J205: =J96-J108-J120-J141-J130 -> -0.05052184683 | K205: -0.6166488378 | L205: -0.07371551237 | M205: =M96-M108-M120-M141-M130 -> -0.1661554291 | N205: 0 | O205: =SUM(C205:N205) -> 94.62199774
B206: Intereses por mora | C206: =+C98-C110-C121-C143-C132 -> 0 | D206: =+D98-D110-D121-D143-D132 -> 0 | E206: =+E98-E110-E121-E143-E132 -> 0 | F206: 0 | G206: 0 | H206: 0 | I206: =+I98-I110-I121-I143-I132 -> 0 | J206: 0 | K206: 0 | L206: 0 | M206: 0 | N206: 0 | O206: =SUM(C206:N206) -> 0
B207: Comisiones | C207: =C99-C111-C122-C144-C133 -> 0.002074392625 | D207: =D99-D111-D122-D144-D133 -> 4.440892099e-16 | E207: =E99-E111-E122-E144-E133 -> 0.000366209147 | F207: 0.000531347703 | G207: 0.001916836372 | H207: 0.03502676654 | I207: =I99-I111-I122-I144-I133 -> 0.000996796684 | J207: 0 | K207: -0.000241999137 | L207: 0 | M207: 0 | N207: 0 | O207: 0.04067034993
B208: Resto del sector Público no financiero | C208: =SUM(C209:C211) -> 0 | D208: 0 | E208: 0 | F208: 0 | G208: 0 | H208: 0 | I208: 0 | J208: 0 | K208: 0 | L208: 0 | M208: 0 | N208: 0 | O208: 0
B209: Intereses | C209: =C102-C114-C124-C147-C135 -> 0 | D209: 0 | E209: 0 | F209: =F102-F114-F124-F147-F135 -> 0 | G209: 0 | H209: 0 | I209: 0 | J209: 0 | K209: 0 | L209: 0 | M209: 0 | N209: 0 | O209: =SUM(C209:N209) -> 0
B210: Intereses por mora | C210: =C103-C115-C125-C148-C136 -> 0 | D210: 0 | E210: 0 | F210: 0 | G210: 0 | H210: 0 | I210: 0 | J210: 0 | K210: 0 | L210: 0 | M210: 0 | N210: 0 | O210: =SUM(C210:N210) -> 0
B211: Comisiones | C211: =C104-C116-C126-C149-C137 -> 0 | D211: 0 | E211: 0 | F211: 0 | G211: 0 | H211: 0 | I211: 0 | J211: 0 | K211: 0 | L211: 0 | M211: 0 | N211: 0 | O211: 0
B213: XXVIII.- Atrasos de intereses al final del período | C213: =+C214+C218 -> 16113.93943 | D213: 16113.93943 | E213: 17948.16027 | F213: 18637.2512 | G213: 18547.4971 | H213: 21154.34934 | I213: 19421.50013 | J213: 19421.50013 | K213: 17966.02234 | L213: 18167.37965 | M213: 17223.04402 | N213: 0
B214: Gobierno Central | C214: =SUM(C215:C217) -> 16113.93943 | D214: 16113.93943 | E214: 17948.16027 | F214: 18637.2512 | G214: 18547.4971 | H214: 21154.34934 | I214: 19421.50013 | J214: 19421.50013 | K214: 17966.02234 | L214: 18167.37965 | M214: 17223.04402 | N214: 0
B215: Intereses | C215: =+C195+C141 -> 16113.93943 | D215: =+D195+D141 -> 16113.93943 | E215: =+E195+E141 -> 17948.16027 | F215: =+F195+F141 -> 18637.2512 | G215: 18547.4971 | H215: =+H195+H141 -> 21154.27685 | I215: 19421.50013 | J215: =+J195+J141 -> 19421.50013 | K215: =+K195+K141 -> 17966.02234 | L215: =+L195+L141 -> 18167.37965 | M215: =+M195+M141 -> 17223.04402 | N215: 0
B216: Intereses por mora | C216: =+C196+C143 -> 0 | D216: =+D196+D143 -> 0 | E216: 0 | F216: 0 | G216: 0 | H216: 0 | I216: 0 | J216: 0 | K216: 0 | L216: 0 | M216: 0 | N216: 0
B217: Comisiones | C217: =+C197+C144 -> 0 | D217: =+D197+D144 -> 0 | E217: 0 | F217: 0 | G217: 0 | H217: =+H197+H144 -> 0.07249016 | I217: 0 | J217: 0 | K217: 0 | L217: 0 | M217: 0 | N217: 0
B218: Resto del sector Público no financiero | C218: =SUM(C219:C221) -> 0 | D218: 0 | E218: 0 | F218: 0 | G218: 0 | H218: 0 | I218: 0 | J218: 0 | K218: 0 | L218: 0 | M218: 0 | N218: 0
B219: Intereses | C219: =+C199+C147 -> 0 | D219: 0 | E219: 0 | F219: 0 | G219: 0 | H219: 0 | I219: 0 | J219: 0 | K219: 0 | L219: 0 | M219: 0 | N219: 0
B220: Intereses por mora | C220: =+C200+C148 -> 0 | D220: 0 | E220: 0 | F220: 0 | G220: 0 | H220: 0 | I220: 0 | J220: 0 | K220: 0 | L220: 0 | M220: 0 | N220: 0
B221: Comisiones | C221: =+C201+C149 -> 0 | D221: 0 | E221: 0 | F221: 0 | G221: 0 | H221: 0 | I221: 0 | J221: 0 | K221: 0 | L221: 0 | M221: 0 | N221: 0
B224: Notas
B225: 1/ Hay renglones que no presentan sumatoria en la columna 'Total', debido a que reflejan balance a un periodo determinado.

Sheet Ejec RD$
B8: Ejecución de Fuentes de Financiamiento Internas Correspondientes al año 2020
B9: Desembolsos Fuentes Internas 2020
B10: Cifras Preliminares en DOP
B11: FUENTE FINANCIERA INTERNA | C11: Enero | D11: Febrero | E11: Marzo | F11: Abril | G11: Mayo | H11: Junio | I11: Julio | J11: Agosto | K11: Septiembre | L11: Octubre | M11: Noviembre | N11: Diciembre | O11: TOTAL
B13: TOTAL FUENTES INTERNAS | C13: =+C15+C19 -> 5408000000 | D13: =+D15+D19 -> 4050000000 | E13: 8813800000 | F13: 0 | G13: 40000000000 | H13: 1500000000 | I13: 43759850000 | J13: 26000000000 | K13: -14964400000 | L13: 0 | M13: 0 | N13: 0 | O13: 114567250000
B15: Ministerio de Hacienda (M/L Plazo) | C15: =SUM(C16:C17) -> 5408000000 | D15: =SUM(D16:D17) -> 4050000000 | E15: 8813800000 | F15: 0 | G15: 40000000000 | H15: 1500000000 | I15: 43759850000 | J15: 5000000000 | K15: 6035600000 | L15: 0 | M15: 0 | N15: 0 | O15: =+SUM(O16:O17) -> 114567250000
B16: Bonos Colocados MH | C16: 5408000000 | D16: 4050000000 | E16: 8813800000 | F16: 0 | G16: 40000000000 | H16: 0 | I16: 43759850000 | J16: 5000000000 | K16: 6035600000 | L16: 0 | M16: 0 | N16: 0 | O16: =+SUM(C16:N16) -> 113067250000
B17: Banca Comercial Local | C17: 0 | D17: 0 | E17: 0 | F17: 0 | G17: 0 | H17: 1500000000 | I17: 0 | J17: 0 | K17: 0 | L17: 0 | M17: 0 | N17: 0 | O17: =+SUM(C17:N17) -> 1500000000
B19: Tesorería Nacional (Corto Plazo) | C19: =+C20+C24 -> 0 | D19: 0 | E19: 0 | F19: 0 | G19: 0 | H19: 0 | I19: 0 | J19: 21000000000 | K19: -21000000000 | L19: 0 | M19: 0 | N19: 0 | O19: =+O20+O24 -> 0
B20: Lineas de Crédito | C20: =SUM(C21:C23) -> 0 | D20: =SUM(D21:D23) -> 0 | E20: 0 | F20: 0 | G20: 0 | H20: 0 | I20: =SUM(I21:I23) -> 0 | J20: 21000000000 | K20: -21000000000 | L20: 0 | M20: 0 | N20: 0 | O20: =+O21+O22+O23 -> 0
B21: Créditos (Desembolsos) | C21: 5312812500 | D21: 0 | E21: 0 | F21: 0 | G21: 0 | H21: 0 | I21: 3000000000 | J21: 21000000000 | K21: 7000000000 | L21: 0 | M21: 0 | N21: 0 | O21: =SUM(C21:N21) -> 36312812500
B22: Débitos (Reembolsos) | C22: -5313490000 | D22: 0 | E22: 0 | F22: 0 | G22: 0 | H22: 0 | I22: -3000000000 | J22: 0 | K22: -28000000000 | L22: 0 | M22: 0 | N22: 0 | O22: =SUM(C22:N22) -> -36313490000
B23: Variación Cambiaria | C23: 677500 | D23: 0 | E23: 0 | F23: 0 | G23: 0 | H23: 0 | I23: 0 | J23: 0 | K23: 0 | L23: 0 | M23: 0 | N23: 0 | O23: =SUM(C23:N23) -> 677500
B24: Letras del Tesoro | C24: =SUM(C25:C26) -> 0 | D24: =SUM(D25:D26) -> 0 | E24: 0 | F24: 0 | G24: 0 | H24: 0 | I24: 0 | J24: 0 | K24: 0 | L24: 0 | M24: 0 | N24: 0 | O24: 0
B25: Créditos (Desembolsos) | C25: 0 | D25: 0 | E25: 0 | F25: 0 | G25: 0 | H25: 0 | I25: 0 | J25: 0 | K25: 0 | L25: 0 | M25: 0 | N25: 0 | O25: =+SUM(C25:N25) -> 0
B26: Débitos (Reembolsos) | C26: 0 | D26: 0 | E26: 0 | F26: 0 | G26: 0 | H26: 0 | I26: 0 | J26: 0 | K26: 0 | L26: 0 | M26: 0 | N26: 0 | O26: =+SUM(C26:N26) -> 0
B28: 1) Se considera la variación cambiaria generada por diferencia de tasas de cambio al momento del desembolso y el repago.

Sheet Verificacion (hidden)
B6: Evolución de la Deuda Pública Interna del Sector Público No Financiero durante el período Enero 2018
B8: Cifras Preliminares en Millones de Pesos Dominicanos (DOP)
B9: CONCEPTOS | C9: ENE | D9: FEB | E9: MAR | F9: ABR | G9: MAY | H9: JUN | I9: JUL | J9: AGO | K9: SEP | L9: OCT | M9: NOV | N9: DIC | O9: Total
B11: DESEMBOLSOS
B13: I.- Desembolsos/Colocaciones | C13: =+C14+C30+C27 -> 0 | D13: 0 | E13: 0 | F13: 0 | G13: 0 | H13: 10991.57087 | I13: 2802.621818 | J13: 3476.599894 | K13: 0 | L13: 3502.4 | M13: 0 | N13: 0 | O13: 20773.19259
B14: Apoyo Presupuestario | C14: =+C15+C21 -> 0 | D14: =+D15+D21 -> 0 | E14: =+E15+E21 -> 0 | F14: 0 | G14: 0 | H14: 9000 | I14: 1000 | J14: 1268.9 | K14: 0 | L14: 3502.4 | M14: 0 | N14: 0 | O14: 14771.3
B15: Ministerio de Hacienda (Mediano/Largo Plazo) | C15: =SUM(C16:C19) -> 0 | D15: 0 | E15: 0 | F15: 0 | G15: 0 | H15: 0 | I15: 0 | J15: 11268.9 | K15: 0 | L15: 3502.4 | M15: 0 | N15: 0 | O15: 14771.3
B16: Bonos Subastas | C16: 0 | D16: 0 | E16: 0 | F16: 0 | G16: 0 | H16: 0 | I16: 0 | J16: 11268.9 | K16: 0 | L16: 3502.4 | M16: 0 | N16: 0 | O16: =SUM(C16:N16) -> 14771.3
B17: Prestamos Banco Central | C17: 0 | D17: 0 | E17: 0 | F17: 0 | G17: 0 | H17: 0 | I17: 0 | J17: 0 | K17: 0 | L17: 0 | M17: 0 | N17: 0 | O17: =SUM(C17:N17) -> 0
B18: Prestamos Banco de Reservas | C18: 0 | D18: 0 | E18: 0 | F18: 0 | G18: 0 | H18: 0 | I18: 0 | J18: 0 | K18: 0 | L18: 0 | M18: 0 | N18: 0 | O18: 0
B19: Bonos Recapitalización del BCRD (Ley 167-07) | C19: 0 | D19: 0 | E19: 0 | F19: 0 | G19: 0 | H19: 0 | I19: 0 | J19: 0 | K19: 0 | L19: 0 | M19: 0 | N19: 0 | O19: 0
B21: Tesorería Nacional (Corto Plazo) | C21: =C22 -> 0 | D21: =D22 -> 0 | E21: 0 | F21: 0 | G21: 0 | H21: 9000 | I21: 1000 | J21: -10000 | K21: 0 | L21: 0 | M21: 0 | N21: 0 | O21: =O22 -> 0
B22: Flujos Lineas de Crédito | C22: =SUM(C23:C25) -> 0 | D22: =SUM(D23:D25) -> 0 | E22: 0 | F22: 0 | G22: 0 | H22: 9000 | I22: 1000 | J22: -10000 | K22: 0 | L22: 0 | M22: 0 | N22: 0 | O22: =SUM(O23:O25) -> 0
B23: Créditos (Desembolsos) | C23: 0 | D23: 0 | E23: 0 | F23: 0 | G23: 0 | H23: 12000 | I23: 3000 | J23: 0 | K23: 1000 | L23: 0 | M23: 0 | N23: 0 | O23: =SUM(C23:N23) -> 16000
B24: Débitos (Reembolsos) | C24: 0 | D24: 0 | E24: 0 | F24: 0 | G24: 0 | H24: -3000 | I24: -2000 | J24: -10000 | K24: -1000 | L24: 0 | M24: 0 | N24: 0 | O24: =SUM(C24:N24) -> -16000
B25: Ajuste por Tipo de Cambio | C25: 0 | D25: 0 | E25: 0 | F25: 0 | G25: 0 | H25: 0 | I25: 0 | J25: 0 | K25: 0 | L25: 0 | M25: 0 | N25: 0 | O25: =SUM(C25:N25) -> 0
H26: ='Ejec RD$'!I23/1000000 -> 0 | I26: ='Ejec RD$'!J23/1000000 -> 0 | J26: ='Ejec RD$'!K23/1000000 -> 0
B27: Bonos Deuda Administrativa | C27: =+C28 -> 0 | D27: 0 | E27: 0 | F27: =+F28 -> 0 | G27: =+G28 -> 0 | H27: =+H28 -> 0 | I27: =+I28 -> 0 | J27: 0 | K27: 0 | L27: 0 | M27: 0 | N27: 0 | O27: =+O28 -> 0
B28: Disminucion de Cuentas x Pagar | C28: 0 | D28: 0 | E28: 0 | F28: 0 | G28: 0 | H28: 0 | I28: 0 | J28: 0 | K28: 0 | L28: 0 | M28: 0 | N28: 0 | O28: =SUM(C28:N28) -> 0
B30: Desembolsos a Instituciones del Resto del SPNF | C30: =+C31 -> 0 | D30: 0 | E30: 0 | F30: 0 | G30: 0 | H30: 1991.570873 | I30: 1802.621818 | J30: 2207.699894 | K30: 0 | L30: 0 | M30: 0 | N30: 0 | O30: =+O31 -> 6001.892585
B31: Financiamiento del BanReservas al Resto del SPNF | C31: 0 | D31: 0 | E31: 0 | F31: 0 | G31: 0 | H31: 1991.570873 | I31: 1802.621818 | J31: 2207.699894 | K31: 0 | L31: 0 | M31: 0 | N31: 0 | O31: =SUM(C31:N31) -> 6001.892585
B33: PRINCIPAL
A34: 1000000 | C34: 2018
B35: II.- Vencimientos Regulares Principal | C35: =+C36+C38+C37 -> 0 | D35: =+D36+D38 -> 0 | E35: =+E36+E38 -> 0 | F35: 0 | G35: 0 | H35: 8835.357255 | I35: 1092.214389 | J35: =+J36+J38 -> 1084.442056 | K35: =+K36+K38 -> 609.7221894 | L35: 5609.74719 | M35: 609.7606098 | N35: 1111.332944 | O35: =+O36+O38 -> 18952.57663
A36: -II-Int | B36: Gobierno Central | C36: 0 | D36: 0 | E36: 0 | F36: 0 | G36: 0 | H36: 8487.446497 | I36: 609.6973357 | J36: 609.7086228 | K36: 609.7221894 | L36: 5609.74719 | M36: 609.7606098 | N36: 1111.332944 | O36: =SUM(C36:N36) -> 17647.41539
B37: De los cuales: Bonos | C37: 0 | D37: 0 | E37: 0 | F37: 0 | G37: 0 | H37: 8000 | I37: 0 | J37: 0 | K37: 0 | L37: 5000 | M37: 0 | N37: 0 | O37: =SUM(C37:N37) -> 13000
B38: Resto del sector Público no financiero | C38: 0 | D38: 0 | E38: 0 | F38: 0 | G38: 0 | H38: 347.9107577 | I38: 482.5170535 | J38: 474.7334328 | K38: 0 | L38: 0 | M38: 0 | N38: 0 | O38: =SUM(C38:N38) -> 1305.161244
B40: III.- Pagos del período Principal | C40: =+C41+C43 -> 0 | D40: =+D41+D43 -> 0 | E40: =+E41+E43 -> 0 | F40: 0 | G40: 0 | H40: 8835.365245 | I40: 1092.197256 | J40: 1084.443428 | K40: 609.7243218 | L40: 609.7320304 | M40: 609.7527541 | N40: 1111.794054 | O40: =+O41+O43 -> 13953.00909
A41: -III-Int | B41: Gobierno Central | C41: 0 | D41: 0 | E41: 0 | F41: 0 | G41: 0 | H41: 8487.454488 | I41: 609.6802028 | J41: 609.7099954 | K41: 609.7243218 | L41: 609.7320304 | M41: 609.7527541 | N41: 1111.794054 | O41: =SUM(C41:N41) -> 12647.84785
B42: De los cuales: Bonos | C42: 0 | D42: 0 | E42: 0 | F42: 0 | G42: 0 | H42: 8000 | I42: 0 | J42: 0 | K42: 0 | L42: 0 | M42: 0 | N42: 0 | O42: =SUM(C42:N42) -> 8000
B43: Resto del sector Público no financiero | C43: 0 | D43: 0 | E43: 0 | F43: 0 | G43: 0 | H43: 347.9107577 | I43: 482.5170535 | J43: 474.7334328 | K43: 0 | L43: 0 | M43: 0 | N43: 0 | O43: =SUM(C43:N43) -> 1305.161244
B45: IV.- Renegociaciones del Período de principal | C45: =+C46+C47 -> 0 | D45: =+D46+D47 -> 0 | E45: 0 | F45: 0 | G45: 0 | H45: 0 | I45: 0 | J45: 0 | K45: 0 | L45: 0 | M45: 0 | N45: 0 | O45: 0
B46: Gobierno Central | C46: 0 | D46: 0 | E46: 0 | F46: 0 | G46: 0 | H46: 0 | I46: 0 | J46: 0 | K46: 0 | L46: 0 | M46: 0 | N46: 0 | O46: =SUM(C46:N46) -> 0
B47: Resto del sector Público no financiero | C47: 0 | D47: 0 | E47: 0 | F47: 0 | G47: 0 | H47: 0 | I47: 0 | J47: 0 | K47: 0 | L47: 0 | M47: 0 | N47: 0 | O47: =SUM(C47:N47) -> 0
B49: V.- Cesión de Crédito | C49: =+C50+C51 -> 0 | D49: =+D50+D51 -> 0 | E49: 0 | F49: 0 | G49: 0 | H49: 0 | I49: 0 | J49: 0 | K49: 0 | L49: 0 | M49: 0 | N49: 0 | O49: 0
B50: Gobierno Central | C50: 0 | D50: 0 | E50: 0 | F50: 0 | G50: 0 | H50: 0 | I50: 0 | J50: 0 | K50: 0 | L50: 0 | M50: 0 | N50: 0 | O50: =SUM(C50:N50) -> 0
B51: Resto del sector Público no financiero | C51: 0 | D51: 0 | E51: 0 | F51: 0 | G51: 0 | H51: 0 | I51: 0 | J51: 0 | K51: 0 | L51: 0 | M51: 0 | N51: 0 | O51: =SUM(C51:N51) -> 0
B53: VI.- Condonaciones del Período de principal | C53: =+C54+C55 -> 0 | D53: 0 | E53: 0 | F53: 0 | G53: 0 | H53: 0 | I53: 0 | J53: 0 | K53: 0 | L53: 0 | M53: 0 | N53: 0 | O53: 0
B54: Gobierno Central | C54: 0 | D54: 0 | E54: 0 | F54: 0 | G54: 0 | H54: 0 | I54: 0 | J54: 0 | K54: 0 | L54: 0 | M54: 0 | N54: 0 | O54: =SUM(C54:N54) -> 0
B55: Resto del sector Público no financiero | C55: 0 | D55: 0 | E55: 0 | F55: 0 | G55: 0 | H55: 0 | I55: 0 | J55: 0 | K55: 0 | L55: 0 | M55: 0 | N55: 0 | O55: =SUM(C55:N55) -> 0
B57: VII.- Nuevos Atrasos principal del Período (No pagados) | C57: =+C58+C59 -> 0 | D57: =+D58+D59 -> 0 | E57: 0 | F57: 0 | G57: 0 | H57: 0 | I57: 0 | J57: 0 | K57: 0 | L57: 0 | M57: 0 | N57: 0 | O57: 0
B58: Gobierno Central | C58: 0 | D58: 0 | E58: 0 | F58: 0 | G58: 0 | H58: 0 | I58: 0 | J58: 0 | K58: 0 | L58: 0 | M58: 0 | N58: 0 | O58: =SUM(C58:N58) -> 0
B59: Resto del sector Público no financiero | C59: 0 | D59: 0 | E59: 0 | F59: 0 | G59: 0 | H59: 0 | I59: 0 | J59: 0 | K59: 0 | L59: 0 | M59: 0 | N59: 0 | O59: =SUM(C59:N59) -> 0
B61: VIII.-Atrasos al inicio del período de principal | C61: =+C62+C63 -> 0 | D61: =+D62+D63 -> 0 | E61: 0 | F61: 0 | G61: 0 | H61: 0 | I61: 0 | J61: 0 | K61: 0 | L61: 0 | M61: 0 | N61: 0
B62: Gobierno Central | C62: 0 | D62: 0 | E62: 0 | F62: 0 | G62: 0 | H62: 0 | I62: 0 | J62: 0 | K62: 0 | L62: 0 | M62: 0 | N62: 0
B63: Resto del sector Público no financiero | C63: 0 | D63: 0 | E63: 0 | F63: 0 | G63: 0 | H63: 0 | I63: 0 | J63: 0 | K63: 0 | L63: 0 | M63: 0 | N63: 0
B65: IX.- Pagos de atrasos al inicio del período de principal | C65: =+C66+C67 -> 0 | D65: =+D66+D67 -> 0 | E65: 0 | F65: 0 | G65: 0 | H65: 0 | I65: 0 | J65: 0 | K65: 0 | L65: 0 | M65: 0 | N65: 0 | O65: 0
B66: Gobierno Central | C66: 0 | D66: 0 | E66: 0 | F66: 0 | G66: 0 | H66: 0 | I66: 0 | J66: 0 | K66: 0 | L66: 0 | M66: 0 | N66: 0 | O66: =SUM(C66:N66) -> 0
B67: Resto del sector Público no financiero | C67: 0 | D67: 0 | E67: 0 | F67: 0 | G67: 0 | H67: 0 | I67: 0 | J67: 0 | K67: 0 | L67: 0 | M67: 0 | N67: 0 | O67: =SUM(C67:N67) -> 0
B69: X.- Renegociaciones de Períodos Anteriores de principal | C69: =+C70+C71 -> 0 | D69: 0 | E69: 0 | F69: 0 | G69: 0 | H69: 0 | I69: 0 | J69: 0 | K69: 0 | L69: 0 | M69: 0 | N69: 0 | O69: 0
B70: Gobierno Central | C70: 0 | D70: 0 | E70: 0 | F70: 0 | G70: 0 | H70: 0 | I70: 0 | J70: 0 | K70: 0 | L70: 0 | M70: 0 | N70: 0 | O70: =SUM(C70:N70) -> 0
B71: Resto del sector Público no financiero | C71: 0 | D71: 0 | E71: 0 | F71: 0 | G71: 0 | H71: 0 | I71: 0 | J71: 0 | K71: 0 | L71: 0 | M71: 0 | N71: 0 | O71: =SUM(C71:N71) -> 0
B73: XI.- Condonaciones de Períodos Anteriores de principal | C73: =+C74+C75 -> 0 | D73: =+D74+D75 -> 0 | E73: 0 | F73: 0 | G73: 0 | H73: 0 | I73: 0 | J73: 0 | K73: 0 | L73: 0 | M73: 0 | N73: 0 | O73: =+O74+O75 -> 0
B74: Gobierno Central | C74: 0 | D74: 0 | E74: 0 | F74: 0 | G74: 0 | H74: 0 | I74: 0 | J74: 0 | K74: 0 | L74: 0 | M74: 0 | N74: 0 | O74: =SUM(C74:N74) -> 0
B75: Resto del sector Público no financiero | C75: 0 | D75: 0 | E75: 0 | F75: 0 | G75: 0 | H75: 0 | I75: 0 | J75: 0 | K75: 0 | L75: 0 | M75: 0 | N75: 0 | O75: =SUM(C75:N75) -> 0
B77: XII.- Atrasos pendientes períodos anteriores de principal | C77: =SUM(C78:C79) -> 0 | D77: =SUM(D78:D79) -> 0 | E77: 0 | F77: 0 | G77: 0 | H77: 0 | I77: 0 | J77: 0 | K77: 0 | L77: 0 | M77: 0 | N77: 0
B78: Gobierno Central | C78: 0 | D78: 0 | E78: 0 | F78: 0 | G78: 0 | H78: 0 | I78: 0 | J78: 0 | K78: 0 | L78: 0 | M78: 0 | N78: 0
B79: Resto del sector Público no financiero | C79: 0 | D79: 0 | E79: 0 | F79: 0 | G79: 0 | H79: 0 | I79: 0 | J79: 0 | K79: 0 | L79: 0 | M79: 0 | N79: 0
B81: XIII.-Ajustes por tipo de cambio de principal | C81: =SUM(C82:C83) -> 5.684341886e-14 | D81: =SUM(D82:D83) -> 0 | E81: 5.684341886e-14 | F81: 0 | G81: -5.684341886e-13 | H81: -0.007990457587 | I81: 0.01713290558 | J81: -0.001372594042 | K81: -0.002132418049 | L81: 5000.01516 | M81: 0.007855644316 | N81: -0.4611103024 | O81: 4999.567543
B82: Gobierno Central | C82: 5.684341886e-14 | D82: 0 | E82: 5.684341886e-14 | F82: 0 | G82: -5.684341886e-13 | H82: -0.007990457587 | I82: 0.01713290558 | J82: -0.001372594042 | K82: -0.002132418049 | L82: 5000.01516 | M82: 0.007855644316 | N82: -0.4611103024 | O82: =SUM(C82:N82) -> 4999.567543
B83: Resto del sector Público no financiero | C83: 0 | D83: 0 | E83: 0 | F83: 0 | G83: 0 | H83: 0 | I83: 0 | J83: 0 | K83: 0 | L83: 0 | M83: 0 | N83: 0 | O83: =SUM(C83:N83) -> 0
B85: XIV.- Atrasos al final del período de principal | C85: =SUM(C86:C87) -> 0 | D85: 0 | E85: 0 | F85: 0 | G85: 0 | H85: 0 | I85: 0 | J85: 0 | K85: 0 | L85: 0 | M85: 0 | N85: 0
B86: Gobierno Central | C86: 0 | D86: 0 | E86: 0 | F86: 0 | G86: 0 | H86: 0 | I86: 0 | J86: 0 | K86: 0 | L86: 0 | M86: 0 | N86: 0
B87: Resto del sector Público no financiero | C87: 0 | D87: 0 | E87: 0 | F87: 0 | G87: 0 | H87: 0 | I87: 0 | J87: 0 | K87: 0 | L87: 0 | M87: 0 | N87: 0
B89: INTERESES
B91: XV.- Vencimientos Regulares Intereses | C91: =+C92+C98 -> 0 | D91: =+D92+D98 -> 0.6745614099 | E91: =+E92+E98 -> 0 | F91: 0 | G91: 0 | H91: 6627.032432 | I91: 4750.812232 | J91: 4288.028826 | K91: 7602.309136 | L91: 2501.730385 | M91: 3657.296925 | N91: 5934.985448 | O91: =+O92+O98 -> 35362.86995
B92: Gobierno Central | C92: =+C93+C95+C96 -> 0 | D92: =+D93+D95+D96 -> 0.6745614099 | E92: =+E93+E95+E96 -> 0 | F92: 0 | G92: 0 | H92: 6551.594486 | I92: 4661.555398 | J92: 4193.925378 | K92: 7602.309136 | L92: 2501.730385 | M92: 3657.296925 | N92: 5934.985448 | O92: 35104.07172
A93: -XV-int | B93: Intereses | C93: 0 | D93: 0.6745614099 | E93: 0 | F93: 0 | G93: 0 | H93: 6546.359504 | I93: 4659.30323 | J93: 4191.888565 | K93: 7600.04509 | L93: 2500.879126 | M93: 3655.848717 | N93: 5934.024447 | O93: =SUM(C93:N93) -> 35089.02324
B94: De los cuales: Bonos | C94: 0 | D94: 0 | E94: 0 | F94: 0 | G94: 0 | H94: 6357.67447 | I94: 4504.337239 | J94: 4073.626911 | K94: 7533.725053 | L94: 2442.881351 | M94: 3602.170521 | N94: 5874.14864 | O94: =(SUM(C94:N94)) -> 34388.56418
B95: Intereses por mora | C95: 0 | D95: 0 | E95: 0 | F95: 0 | G95: 0 | H95: 0 | I95: 0 | J95: 0 | K95: 0 | L95: 0 | M95: 0 | N95: 0 | O95: =SUM(C95:N95) -> 0
B96: Comisiones | C96: 0 | D96: 0 | E96: 0 | F96: 0 | G96: 0 | H96: 5.23498219 | I96: 2.252168493 | J96: 2.036813454 | K96: 2.26404605 | L96: 0.85125948 | M96: 1.44820855 | N96: 0.96100068 | O96: =SUM(C96:N96) -> 15.0484789
B97: De los cuales: Bonos | C97: 0 | D97: 0 | E97: 0 | F97: 0 | G97: 0 | H97: 5.23498219 | I97: 2.252168493 | J97: 2.036813454 | K97: 2.26404605 | L97: 0.85125948 | M97: 1.44820855 | N97: 0.96100068 | O97: =SUM(C97:N97) -> 15.0484789
B98: Resto del sector Público no financiero | C98: =+C99+C100+C101 -> 0 | D98: =+D99+D100+D101 -> 0 | E98: 0 | F98: 0 | G98: 0 | H98: 75.43794577 | I98: 89.25683365 | J98: 94.10344785 | K98: 0 | L98: 0 | M98: 0 | N98: 0 | O98: =+O99+O100+O101 -> 258.7982273
B99: Intereses | C99: 0 | D99: 0 | E99: 0 | F99: 0 | G99: 0 | H99: 75.43794577 | I99: 89.25683365 | J99: 94.10344785 | K99: 0 | L99: 0 | M99: 0 | N99: 0 | O99: =SUM(C99:N99) -> 258.7982273
B100: Intereses por mora | C100: 0 | D100: 0 | E100: 0 | F100: 0 | G100: 0 | H100: 0 | I100: 0 | J100: 0 | K100: 0 | L100: 0 | M100: 0 | N100: 0 | O100: =SUM(C100:N100) -> 0
B101: Comisiones | C101: 0 | D101: 0 | E101: 0 | F101: 0 | G101: 0 | H101: 0 | I101: 0 | J101: 0 | K101: 0 | L101: 0 | M101: 0 | N101: 0 | O101: =SUM(C101:N101) -> 0
B103: XVI.-Pagos de intereses del período | C103: =+C104+C110 -> -0.0034425 | D103: =+D104+D110 -> 0.67456141 | E103: 0 | F103: 0 | G103: 0 | H103: 2739.336386 | I103: 4747.45758 | J103: 4288.031467 | K103: 4596.656681 | L103: 1761.340848 | M103: 2951.529033 | N103: 1982.852376 | O103: =+O104+O110 -> 23067.87549
B104: Gobierno Central | C104: =+C105+C107+C108 -> -0.0034425 | D104: =+D105+D107+D108 -> 0.67456141 | E104: =+E105+E107+E108 -> 0 | F104: 0 | G104: 0 | H104: 2663.89844 | I104: 4658.200747 | J104: 4193.928019 | K104: 4596.656681 | L104: 1761.340848 | M104: 2951.529033 | N104: 1982.852376 | O104: 22809.07726
A105: -XVI-int | B105: Intereses | C105: -0.0034425 | D105: 0.67456141 | E105: 0 | F105: 0 | G105: 0 | H105: 2658.663458 | I105: 4655.950238 | J105: 4191.891205 | K105: 4594.392647 | L105: 1760.489589 | M105: 2950.080824 | N105: 1981.891375 | O105: =SUM(C105:N105) -> 22794.03046
B106: De los cuales: Bonos | C106: 0 | D106: 0 | E106: 0 | F106: 0 | G106: 0 | H106: 2469.964384 | I106: 4501.015269 | J106: 4073.626911 | K106: 4528.068779 | L106: 1702.518941 | M106: 2896.417096 | N106: 1922.00137 | O106: =SUM(C106:N106) -> 22093.61275
B107: Intereses por mora | C107: 0 | D107: 0 | E107: 0 | F107: 0 | G107: 0 | H107: 0 | I107: 0 | J107: 0 | K107: 0 | L107: 0 | M107: 0 | N107: 0 | O107: =SUM(C107:N107) -> 0
B108: Comisiones | C108: 0 | D108: 0 | E108: 0 | F108: 0 | G108: 0 | H108: 5.23498219 | I108: 2.25050849 | J108: 2.036813454 | K108: 2.26403427 | L108: 0.85125948 | M108: 1.44820855 | N108: 0.96100068 | O108: =SUM(C108:N108) -> 15.04680711
A109: -C | B109: De los cuales: Bonos | C109: 0 | D109: 0 | E109: 0 | F109: 0 | G109: 0 | H109: 5.23498219 | I109: 2.25050849 | J109: 2.036813454 | K109: 2.26403427 | L109: 0.85125948 | M109: 1.44820855 | N109: 0.96100068 | O109: =SUM(C109:N109) -> 15.04680711
B110: Resto del sector Público no financiero | C110: =+C111+C112+C113 -> 0 | D110: =+D111+D112+D113 -> 0 | E110: 0 | F110: 0 | G110: 0 | H110: 75.43794577 | I110: 89.25683365 | J110: 94.10344785 | K110: 0 | L110: 0 | M110: 0 | N110: 0 | O110: 258.7982273
B111: Intereses | C111: 0 | D111: 0 | E111: 0 | F111: 0 | G111: 0 | H111: 75.43794577 | I111: 89.25683365 | J111: 94.10344785 | K111: 0 | L111: 0 | M111: 0 | N111: 0 | O111: =SUM(C111:N111) -> 258.7982273
B112: Intereses por mora | C112: 0 | D112: 0 | E112: 0 | F112: 0 | G112: 0 | H112: 0 | I112: 0 | J112: 0 | K112: 0 | L112: 0 | M112: 0 | N112: 0 | O112: =SUM(C112:N112) -> 0
B113: Comisiones | C113: 0 | D113: 0 | E113: 0 | F113: 0 | G113: 0 | H113: 0 | I113: 0 | J113: 0 | K113: 0 | L113: 0 | M113: 0 | N113: 0 | O113: =SUM(C113:N113) -> 0
B115: XVII.-Renegociaciones de intereses del Período | C115: =+C116+C120 -> 0 | D115: =+D116+D120 -> 0 | E115: 0 | F115: 0 | G115: 0 | H115: 0 | I115: 0 | J115: 0 | K115: 0 | L115: 0 | M115: 0 | N115: 0 | O115: 0
B116: Gobierno Central | C116: =+C117+C118+C119 -> 0 | D116: 0 | E116: 0 | F116: 0 | G116: 0 | H116: 0 | I116: 0 | J116: 0 | K116: 0 | L116: 0 | M116: 0 | N116: 0 | O116: 0
B117: Intereses | C117: 0 | D117: 0 | E117: 0 | F117: 0 | G117: 0 | H117: 0 | I117: 0 | J117: 0 | K117: 0 | L117: 0 | M117: 0 | N117: 0 | O117: =SUM(C117:N117) -> 0
B118: Intereses por mora | C118: 0 | D118: 0 | E118: 0 | F118: 0 | G118: 0 | H118: 0 | I118: 0 | J118: 0 | K118: 0 | L118: 0 | M118: 0 | N118: 0 | O118: =SUM(C118:N118) -> 0
B119: Comisiones | C119: 0 | D119: 0 | E119: 0 | F119: 0 | G119: 0 | H119: 0 | I119: 0 | J119: 0 | K119: 0 | L119: 0 | M119: 0 | N119: 0 | O119: =SUM(C119:N119) -> 0
B120: Resto del sector Público no financiero | C120: =+C121+C122+C123 -> 0 | D120: 0 | E120: 0 | F120: 0 | G120: 0 | H120: 0 | I120: 0 | J120: 0 | K120: 0 | L120: 0 | M120: 0 | N120: 0 | O120: 0
B121: Intereses | C121: 0 | D121: 0 | E121: 0 | F121: 0 | G121: 0 | H121: 0 | I121: 0 | J121: 0 | K121: 0 | L121: 0 | M121: 0 | N121: 0 | O121: =SUM(C121:N121) -> 0
B122: Intereses por mora | C122: 0 | D122: 0 | E122: 0 | F122: 0 | G122: 0 | H122: 0 | I122: 0 | J122: 0 | K122: 0 | L122: 0 | M122: 0 | N122: 0 | O122: =SUM(C122:N122) -> 0
B123: Comisiones | C123: 0 | D123: 0 | E123: 0 | F123: 0 | G123: 0 | H123: 0 | I123: 0 | J123: 0 | K123: 0 | L123: 0 | M123: 0 | N123: 0 | O123: =SUM(C123:N123) -> 0
B125: XVIII.- Condonaciones de intereses del Períodos | C125: =+C126+C131 -> 0 | D125: 0 | E125: 0 | F125: 0 | G125: 0 | H125: 0 | I125: 0 | J125: 0 | K125: 0 | L125: 0 | M125: 0 | N125: 0 | O125: 0
B126: Gobierno Central | C126: =+C127+C129+C130 -> 0 | D126: 0 | E126: 0 | F126: 0 | G126: 0 | H126: 0 | I126: 0 | J126: 0 | K126: 0 | L126: 0 | M126: 0 | N126: 0 | O126: =+O127+O129+O130 -> 0
B127: Intereses | C127: 0 | D127: 0 | E127: 0 | F127: 0 | G127: 0 | H127: 0 | I127: 0 | J127: 0 | K127: 0 | L127: 0 | M127: 0 | N127: 0 | O127: =SUM(C127:N127) -> 0
B128: De los cuales: Bonos | C128: 0 | D128: 0 | E128: 0 | F128: 0 | G128: 0 | H128: 0 | I128: 0 | J128: 0 | K128: 0 | L128: 0 | M128: 0 | N128: 0 | O128: =SUM(C128:N128) -> 0
B129: Intereses por mora | C129: 0 | D129: 0 | E129: 0 | F129: 0 | G129: 0 | H129: 0 | I129: 0 | J129: 0 | K129: 0 | L129: 0 | M129: 0 | N129: 0 | O129: 0
B130: Comisiones | C130: 0 | D130: 0 | E130: 0 | F130: 0 | G130: 0 | H130: 0 | I130: 0 | J130: 0 | K130: 0 | L130: 0 | M130: 0 | N130: 0 | O130: 0
B131: Resto del sector Público no financiero | C131: =+C132+C133+C134 -> 0 | D131: 0 | E131: 0 | F131: 0 | G131: 0 | H131: 0 | I131: 0 | J131: 0 | K131: 0 | L131: 0 | M131: 0 | N131: 0 | O131: =+O132+O133+O134 -> 0
B132: Intereses | C132: 0 | D132: 0 | E132: 0 | F132: 0 | G132: 0 | H132: 0 | I132: 0 | J132: 0 | K132: 0 | L132: 0 | M132: 0 | N132: 0 | O132: =SUM(C132:N132) -> 0
B133: Intereses por mora | C133: 0 | D133: 0 | E133: 0 | F133: 0 | G133: 0 | H133: 0 | I133: 0 | J133: 0 | K133: 0 | L133: 0 | M133: 0 | N133: 0 | O133: =SUM(C133:N133) -> 0
B134: Comisiones | C134: 0 | D134: 0 | E134: 0 | F134: 0 | G134: 0 | H134: 0 | I134: 0 | J134: 0 | K134: 0 | L134: 0 | M134: 0 | N134: 0 | O134: =SUM(C134:N134) -> 0
B136: XIX.-Nuevos Atrasos intereses del Período (No Pagados) | C136: =+C137+C143 -> 0 | D136: =+D137+D143 -> 0 | E136: 0 | F136: 0 | G136: 0 | H136: 3887.710086 | I136: 0 | J136: 0 | K136: 3005.632711 | L136: 740.3624102 | M136: 705.7534247 | N136: 3952.14727 | O136: 12291.6059
A137: -XIX | B137: Gobierno Central | C137: =+C138+C140+C141 -> 0 | D137: 0 | E137: 0 | F137: 0 | G137: 0 | H137: 3887.710086 | I137: 0 | J137: 0 | K137: 3005.632711 | L137: 740.3624102 | M137: 705.7534247 | N137: 3952.14727 | O137: 12291.6059
B138: Intereses | C138: 0 | D138: 0 | E138: 0 | F138: 0 | G138: 0 | H138: 3887.710086 | I138: 0 | J138: 0 | K138: 3005.632711 | L138: 740.3624102 | M138: 705.7534247 | N138: 3952.14727 | O138: =SUM(C138:N138) -> 12291.6059
B139: De los cuales: Bonos | C139: 0 | D139: 0 | E139: 0 | F139: 0 | G139: 0 | H139: 3887.710086 | I139: 0 | J139: 0 | K139: 3005.632711 | L139: 740.3624102 | M139: 705.7534247 | N139: 3952.14727 | O139: =SUM(C139:N139) -> 12291.6059
B140: Intereses por mora | C140: 0 | D140: 0 | E140: 0 | F140: 0 | G140: 0 | H140: 0 | I140: 0 | J140: 0 | K140: 0 | L140: 0 | M140: 0 | N140: 0 | O140: 0
B141: Comisiones | C141: 0 | D141: 0 | E141: 0 | F141: 0 | G141: 0 | H141: 0 | I141: 0 | J141: 0 | K141: 0 | L141: 0 | M141: 0 | N141: 0 | O141: 0
B142: De los cuales: Bonos | C142: 0 | D142: 0 | E142: 0 | F142: 0 | G142: 0 | H142: 0 | I142: 0 | J142: 0 | K142: 0 | L142: 0 | M142: 0 | N142: 0 | O142: 0
B143: Resto del sector Público no financiero | C143: =+C144+C145+C146 -> 0 | D143: 0 | E143: 0 | F143: 0 | G143: 0 | H143: 0 | I143: 0 | J143: 0 | K143: 0 | L143: 0 | M143: 0 | N143: 0 | O143: 0
B144: Intereses | C144: 0 | D144: 0 | E144: 0 | F144: 0 | G144: 0 | H144: 0 | I144: 0 | J144: 0 | K144: 0 | L144: 0 | M144: 0 | N144: 0 | O144: =SUM(C144:N144) -> 0
B145: Intereses por mora | C145: 0 | D145: 0 | E145: 0 | F145: 0 | G145: 0 | H145: 0 | I145: 0 | J145: 0 | K145: 0 | L145: 0 | M145: 0 | N145: 0 | O145: =SUM(C145:N145) -> 0
B146: Comisiones | C146: 0 | D146: 0 | E146: 0 | F146: 0 | G146: 0 | H146: 0 | I146: 0 | J146: 0 | K146: 0 | L146: 0 | M146: 0 | N146: 0 | O146: 0
B148: XX.-Atrasos de intereses al inicio del período | C148: =+C149+C153 -> 0 | D148: 0 | E148: 0 | F148: 0 | G148: 0 | H148: 17369.57516 | I148: 20127.28524 | J148: 18000.8539 | K148: 16873.56256 | L148: 17463.37493 | M148: 13515.16755 | N148: 14220.92097
B149: Gobierno Central | C149: =+C150+C151+C152 -> 0 | D149: =+D150+D151+D152 -> 0 | E149: 0 | F149: 0 | G149: 0 | H149: 17369.57516 | I149: 20127.28524 | J149: 18000.8539 | K149: 16873.56256 | L149: 17463.37493 | M149: 13515.16755 | N149: =+N150+N151+N152 -> 14220.92097
B150: Intereses | C150: 0 | D150: 0 | E150: 0 | F150: 0 | G150: 0 | H150: 17369.57516 | I150: 20127.28524 | J150: 18000.8539 | K150: 16873.56256 | L150: 17463.37493 | M150: 13515.16755 | N150: 14220.92097
B151: Intereses por mora | C151: 0 | D151: 0 | E151: 0 | F151: 0 | G151: 0 | H151: 0 | I151: 0 | J151: 0 | K151: 0 | L151: 0 | M151: 0 | N151: 0
B152: Comisiones | C152: 0 | D152: 0 | E152: 0 | F152: 0 | G152: 0 | H152: 0 | I152: 0 | J152: 0 | K152: 0 | L152: 0 | M152: 0 | N152: 0
B153: Resto del sector Público no financiero | C153: =+C154+C155+C156 -> 0 | D153: 0 | E153: 0 | F153: 0 | G153: 0 | H153: 0 | I153: 0 | J153: 0 | K153: 0 | L153: 0 | M153: 0 | N153: 0
B154: Intereses | C154: 0 | D154: 0 | E154: 0 | F154: 0 | G154: 0 | H154: 0 | I154: 0 | J154: 0 | K154: 0 | L154: 0 | M154: 0 | N154: 0
B155: Intereses por mora | C155: 0 | D155: 0 | E155: 0 | F155: 0 | G155: 0 | H155: 0 | I155: 0 | J155: 0 | K155: 0 | L155: 0 | M155: 0 | N155: 0
B156: Comisiones | C156: 0 | D156: 0 | E156: 0 | F156: 0 | G156: 0 | H156: 0 | I156: 0 | J156: 0 | K156: 0 | L156: 0 | M156: 0 | N156: 0
B158: XXI.-Pagos de atrasos de intereses al inicio del período | C158: =+C159+C165 -> 0 | D158: =+D159+D165 -> 0 | E158: 0 | F158: 0 | G158: 0 | H158: 1130 | I158: 2126.431341 | J158: 1127.291338 | K158: 2415.820349 | L158: 4688.569791 | M158: 0 | N158: 929.3150685 | O158: 12417.42789
B159: Gobierno Central | C159: =+C160+C162+C163 -> 0 | D159: =+D160+D162+D163 -> 0 | E159: 0 | F159: 0 | G159: 0 | H159: 1130 | I159: 2126.431341 | J159: 1127.291338 | K159: 2415.820349 | L159: 4688.569791 | M159: 0 | N159: 929.3150685 | O159: 12417.42789
A160: -XXI-Int-Ant | B160: Intereses | C160: 0 | D160: 0 | E160: 0 | F160: 0 | G160: 0 | H160: 1130 | I160: 2126.431341 | J160: 1127.291338 | K160: 2415.820349 | L160: 4688.569791 | M160: 0 | N160: 929.3150685 | O160: =SUM(C160:N160) -> 12417.42789
B161: De los cuales: Bonos | C161: 0 | D161: 0 | E161: 0 | F161: 0 | G161: 0 | H161: 1130 | I161: 2126.431341 | J161: 1127.291338 | K161: 2415.820349 | L161: 4688.569791 | M161: 0 | N161: 929.3150685 | O161: =SUM(C161:N161) -> 12417.42789
B162: Intereses por mora | C162: 0 | D162: 0 | E162: 0 | F162: 0 | G162: 0 | H162: 0 | I162: 0 | J162: 0 | K162: 0 | L162: 0 | M162: 0 | N162: 0 | O162: =SUM(C162:N162) -> 0
B163: Comisiones | C163: 0 | D163: 0 | E163: 0 | F163: 0 | G163: 0 | H163: 0 | I163: 0 | J163: 0 | K163: 0 | L163: 0 | M163: 0 | N163: 0 | O163: =SUM(C163:N163) -> 0
B164: De los cuales: Bonos | C164: 0 | D164: 0 | E164: 0 | F164: 0 | G164: 0 | H164: 0 | I164: 0 | J164: 0 | K164: 0 | L164: 0 | M164: 0 | N164: 0 | O164: =SUM(C164:N164) -> 0
B165: Resto del sector Público no financiero | C165: =+C166+C167+C168 -> 0 | D165: 0 | E165: 0 | F165: 0 | G165: 0 | H165: 0 | I165: 0 | J165: 0 | K165: 0 | L165: 0 | M165: 0 | N165: 0 | O165: =+O166+O167+O168 -> 0
B166: Intereses | C166: 0 | D166: 0 | E166: 0 | F166: 0 | G166: 0 | H166: 0 | I166: 0 | J166: 0 | K166: 0 | L166: 0 | M166: 0 | N166: 0 | O166: =SUM(C166:N166) -> 0
B167: Intereses por mora | C167: 0 | D167: 0 | E167: 0 | F167: 0 | G167: 0 | H167: 0 | I167: 0 | J167: 0 | K167: 0 | L167: 0 | M167: 0 | N167: 0 | O167: =SUM(C167:N167) -> 0
B168: Comisiones | C168: 0 | D168: 0 | E168: 0 | F168: 0 | G168: 0 | H168: 0 | I168: 0 | J168: 0 | K168: 0 | L168: 0 | M168: 0 | N168: 0 | O168: =SUM(C168:N168) -> 0
B170: XXII.- Renegociaciones intereses de Períodos anteriores | C170: =+C171+C175 -> 0 | D170: 0 | E170: 0 | F170: 0 | G170: 0 | H170: 0 | I170: 0 | J170: 0 | K170: 0 | L170: 0 | M170: 0 | N170: 0 | O170: 0
B171: Gobierno Central | C171: =+C172+C173+C174 -> 0 | D171: 0 | E171: 0 | F171: 0 | G171: 0 | H171: 0 | I171: 0 | J171: 0 | K171: 0 | L171: 0 | M171: 0 | N171: 0 | O171: 0
B172: Intereses | C172: 0 | D172: 0 | E172: 0 | F172: 0 | G172: 0 | H172: 0 | I172: 0 | J172: 0 | K172: 0 | L172: 0 | M172: 0 | N172: 0 | O172: =SUM(C172:N172) -> 0
B173: Intereses por mora | C173: 0 | D173: 0 | E173: 0 | F173: 0 | G173: 0 | H173: 0 | I173: 0 | J173: 0 | K173: 0 | L173: 0 | M173: 0 | N173: 0 | O173: =SUM(C173:N173) -> 0
B174: Comisiones | C174: 0 | D174: 0 | E174: 0 | F174: 0 | G174: 0 | H174: 0 | I174: 0 | J174: 0 | K174: 0 | L174: 0 | M174: 0 | N174: 0 | O174: 0
B175: Resto del sector Público no financiero | C175: =+C176+C177+C178 -> 0 | D175: 0 | E175: 0 | F175: 0 | G175: 0 | H175: 0 | I175: 0 | J175: 0 | K175: 0 | L175: 0 | M175: 0 | N175: 0 | O175: =+O176+O177+O178 -> 0
B176: Intereses | C176: 0 | D176: 0 | E176: 0 | F176: 0 | G176: 0 | H176: 0 | I176: 0 | J176: 0 | K176: 0 | L176: 0 | M176: 0 | N176: 0 | O176: =SUM(C176:N176) -> 0
B177: Intereses por mora | C177: 0 | D177: 0 | E177: 0 | F177: 0 | G177: 0 | H177: 0 | I177: 0 | J177: 0 | K177: 0 | L177: 0 | M177: 0 | N177: 0 | O177: =SUM(C177:N177) -> 0
B178: Comisiones | C178: 0 | D178: 0 | E178: 0 | F178: 0 | G178: 0 | H178: 0 | I178: 0 | J178: 0 | K178: 0 | L178: 0 | M178: 0 | N178: 0 | O178: 0
B180: XXIII.-Condonaciones intereses de Períodos anteriores | C180: =+C181+C185 -> 0 | D180: =+D181+D185 -> 0 | E180: 0 | F180: 0 | G180: 0 | H180: 0 | I180: 0 | J180: 0 | K180: 0 | L180: 0 | M180: 0 | N180: 0 | O180: 0
B181: Gobierno Central | C181: =+C182+C183+C184 -> 0 | D181: =+D182+D183+D184 -> 0 | E181: 0 | F181: 0 | G181: 0 | H181: 0 | I181: 0 | J181: 0 | K181: 0 | L181: 0 | M181: 0 | N181: 0 | O181: 0
B182: Intereses | C182: 0 | D182: 0 | E182: 0 | F182: 0 | G182: 0 | H182: 0 | I182: 0 | J182: 0 | K182: 0 | L182: 0 | M182: 0 | N182: 0 | O182: =SUM(C182:N182) -> 0
B183: Intereses por mora | C183: 0 | D183: 0 | E183: 0 | F183: 0 | G183: 0 | H183: 0 | I183: 0 | J183: 0 | K183: 0 | L183: 0 | M183: 0 | N183: 0 | O183: =SUM(C183:N183) -> 0
B184: Comisiones | C184: 0 | D184: 0 | E184: 0 | F184: 0 | G184: 0 | H184: 0 | I184: 0 | J184: 0 | K184: 0 | L184: 0 | M184: 0 | N184: 0 | O184: =SUM(C184:N184) -> 0
B185: Resto del sector Público no financiero | C185: =+C186+C187+C188 -> 0 | D185: 0 | E185: 0 | F185: 0 | G185: 0 | H185: 0 | I185: 0 | J185: 0 | K185: 0 | L185: 0 | M185: 0 | N185: 0 | O185: =+O186+O187+O188 -> 0
B186: Intereses | C186: 0 | D186: 0 | E186: 0 | F186: 0 | G186: 0 | H186: 0 | I186: 0 | J186: 0 | K186: 0 | L186: 0 | M186: 0 | N186: 0 | O186: =SUM(C186:N186) -> 0
B187: Intereses por mora | C187: 0 | D187: 0 | E187: 0 | F187: 0 | G187: 0 | H187: 0 | I187: 0 | J187: 0 | K187: 0 | L187: 0 | M187: 0 | N187: 0 | O187: =SUM(C187:N187) -> 0
B188: Comisiones | C188: 0 | D188: 0 | E188: 0 | F188: 0 | G188: 0 | H188: 0 | I188: 0 | J188: 0 | K188: 0 | L188: 0 | M188: 0 | N188: 0 | O188: =SUM(C188:N188) -> 0
B190: XXIV.- Atrasos intereses pendientes de períodos anteriores | C190: =+C191+C195 -> 0 | D190: =+D191+D195 -> 0 | E190: 0 | F190: 0 | G190: 0 | H190: 16239.57516 | I190: 18000.8539 | J190: 16873.56256 | K190: 14457.74222 | L190: 12774.80514 | M190: 13515.16755 | N190: 13291.6059
B191: Gobierno Central | C191: =SUM(C192:C194) -> 0 | D191: 0 | E191: 0 | F191: 0 | G191: 0 | H191: 16239.57516 | I191: 18000.8539 | J191: 16873.56256 | K191: 14457.74222 | L191: 12774.80514 | M191: 13515.16755 | N191: 13291.6059
B192: Intereses | C192: 0 | D192: 0 | E192: 0 | F192: 0 | G192: 0 | H192: 16239.57516 | I192: 18000.8539 | J192: 16873.56256 | K192: 14457.74222 | L192: 12774.80514 | M192: 13515.16755 | N192: 13291.6059
B193: Intereses por mora | C193: 0 | D193: 0 | E193: 0 | F193: 0 | G193: 0 | H193: 0 | I193: 0 | J193: 0 | K193: 0 | L193: 0 | M193: 0 | N193: 0
B194: Comisiones | C194: 0 | D194: 0 | E194: 0 | F194: 0 | G194: 0 | H194: 0 | I194: 0 | J194: 0 | K194: 0 | L194: 0 | M194: 0 | N194: 0
B195: Resto del sector Público no financiero | C195: =SUM(C196:C198) -> 0 | D195: 0 | E195: 0 | F195: 0 | G195: 0 | H195: 0 | I195: 0 | J195: 0 | K195: 0 | L195: 0 | M195: 0 | N195: 0
B196: Intereses | C196: 0 | D196: 0 | E196: 0 | F196: 0 | G196: 0 | H196: 0 | I196: 0 | J196: 0 | K196: 0 | L196: 0 | M196: 0 | N196: 0
B197: Intereses por mora | C197: 0 | D197: 0 | E197: 0 | F197: 0 | G197: 0 | H197: 0 | I197: 0 | J197: 0 | K197: 0 | L197: 0 | M197: 0 | N197: 0
B198: Comisiones | C198: 0 | D198: 0 | E198: 0 | F198: 0 | G198: 0 | H198: 0 | I198: 0 | J198: 0 | K198: 0 | L198: 0 | M198: 0 | N198: 0
B200: XVIII.-Ajustes por tipo de cambio de intereses | C200: =+C201+C205 -> 0.0034425 | D200: =+D201+D205 -> -1.155067153e-10 | E200: 0 | F200: -2.273736754e-13 | G200: -4.549693955e-13 | H200: -0.01404029896 | I200: 3.354651405 | J200: -0.002640584797 | K200: 0.01974302094 | L200: 0.02712682086 | M200: 0.01446788074 | N200: -0.01419778819 | O200: 3.388552955
B201: Gobierno Central | C201: =SUM(C202:C204) -> 0.0034425 | D201: -1.155067153e-10 | E201: 0 | F201: -2.273736754e-13 | G201: -4.549693955e-13 | H201: -0.01404029896 | I201: 3.354651405 | J201: -0.002640584797 | K201: 0.01974302094 | L201: 0.02712682086 | M201: 0.01446788074 | N201: -0.01419778819 | O201: 3.388552955
B202: Intereses | C202: 0.0034425 | D202: -1.155058271e-10 | E202: 0 | F202: -2.273736754e-13 | G202: -4.547473509e-13 | H202: -0.01404029896 | I202: 3.352991402 | J202: -0.002640584797 | K202: 0.01973124101 | L202: 0.02712682086 | M202: 0.01446788074 | N202: -0.01419778819 | O202: =SUM(C202:N202) -> 3.386881172
B203: Intereses por mora | C203: 0 | D203: 0 | E203: 0 | F203: 0 | G203: 0 | H203: 0 | I203: 0 | J203: 0 | K203: 0 | L203: 0 | M203: 0 | N203: 0 | O203: =SUM(C203:N203) -> 0
B204: Comisiones | C204: 0 | D204: -8.881784197e-16 | E204: 0 | F204: 0 | G204: -2.220446049e-16 | H204: 0 | I204: 0.001660003216 | J204: -4.440892099e-16 | K204: 1.1779927e-05 | L204: -1.110223025e-16 | M204: 0 | N204: 0 | O204: 0.001671783143
B205: Resto del sector Público no financiero | C205: =SUM(C206:C208) -> 0 | D205: 0 | E205: 0 | F205: 0 | G205: 0 | H205: 0 | I205: 0 | J205: 0 | K205: 0 | L205: 0 | M205: 0 | N205: 0 | O205: 0
B206: Intereses | C206: 0 | D206: 0 | E206: 0 | F206: 0 | G206: 0 | H206: 0 | I206: 0 | J206: 0 | K206: 0 | L206: 0 | M206: 0 | N206: 0 | O206: =SUM(C206:N206) -> 0
B207: Intereses por mora | C207: 0 | D207: 0 | E207: 0 | F207: 0 | G207: 0 | H207: 0 | I207: 0 | J207: 0 | K207: 0 | L207: 0 | M207: 0 | N207: 0 | O207: =SUM(C207:N207) -> 0
B208: Comisiones | C208: 0 | D208: 0 | E208: 0 | F208: 0 | G208: 0 | H208: 0 | I208: 0 | J208: 0 | K208: 0 | L208: 0 | M208: 0 | N208: 0 | O208: 0
B210: XXV.- Atrasos de intereses al final del período | C210: =+C211+C215 -> 0 | D210: 0 | E210: 0 | F210: 0 | G210: 0 | H210: 20127.28524 | I210: 18000.8539 | J210: 16873.56256 | K210: 17463.37493 | L210: 13515.16755 | M210: 14220.92097 | N210: 17243.75317
B211: Gobierno Central | C211: =SUM(C212:C214) -> 0 | D211: 0 | E211: 0 | F211: 0 | G211: 0 | H211: 20127.28524 | I211: 18000.8539 | J211: 16873.56256 | K211: 17463.37493 | L211: 13515.16755 | M211: 14220.92097 | N211: 17243.75317
B212: Intereses | C212: 0 | D212: 0 | E212: 0 | F212: 0 | G212: 0 | H212: 20127.28524 | I212: 18000.8539 | J212: 16873.56256 | K212: 17463.37493 | L212: 13515.16755 | M212: 14220.92097 | N212: 17243.75317
B213: Intereses por mora | C213: 0 | D213: 0 | E213: 0 | F213: 0 | G213: 0 | H213: 0 | I213: 0 | J213: 0 | K213: 0 | L213: 0 | M213: 0 | N213: 0
B214: Comisiones | C214: 0 | D214: 0 | E214: 0 | F214: 0 | G214: 0 | H214: 0 | I214: 0 | J214: 0 | K214: 0 | L214: 0 | M214: 0 | N214: 0
B215: Resto del sector Público no financiero | C215: =SUM(C216:C218) -> 0 | D215: 0 | E215: 0 | F215: 0 | G215: 0 | H215: 0 | I215: 0 | J215: 0 | K215: 0 | L215: 0 | M215: 0 | N215: 0
B216: Intereses | C216: 0 | D216: 0 | E216: 0 | F216: 0 | G216: 0 | H216: 0 | I216: 0 | J216: 0 | K216: 0 | L216: 0 | M216: 0 | N216: 0
B217: Intereses por mora | C217: 0 | D217: 0 | E217: 0 | F217: 0 | G217: 0 | H217: 0 | I217: 0 | J217: 0 | K217: 0 | L217: 0 | M217: 0 | N217: 0
B218: Comisiones | C218: 0 | D218: 0 | E218: 0 | F218: 0 | G218: 0 | H218: 0 | I218: 0 | J218: 0 | K218: 0 | L218: 0 | M218: 0 | N218: 0
B221: Notas
B222: 1/ Hay renglones que no presentan sumatoria en la columna 'Total', debido a que reflejan balance a un periodo determinado.
